Workbook

Sheet 報告書入力
A1: 必要データ数 | E1: 様式第７号（第34条関係） （甲） | M1: 労 働 保 険 | AA1: 2015-04-01
B2: =68-COUNTIF(B14:B149,99999) -> 0 | G2: =TEXT(EOMONTH(L6,-12),"e") -> 5 | J2: 一括有期事業報告書 （建設の事業） | AB2: 労務比率 | AD2: 2015-04-01 | AE2: 108
F3: 令和 | H3: 年度 | AB3: 33 舗装工事業 | AD3: 2019-10-01 | AE3: 110
C4: 税込 | E4: 前年度中（保険関係が消滅した日まで）に廃止又は終了があったそれぞれの事業の明細を上記のとおり報告します。 | AB4: 32 道路新設事業
C5: 税抜 | U5: 郵便番号 | X5: （ハイフン不要） | AB5: 34 鉄道又は軌道新設事業
B6: =DATE(G2+2018,4,1) -> 2023-04-01 | E6: 請負代金 | G6: 税込 | J6: 記入日 | L6: 2024-04-01 | U6: 住所 | AB6: 35 建築事業 （既設建築物設備工事業を除く）
B7: =EDATE(B6,12)-1 -> 2024-03-31 | U7: 事業所名 | AB7: 38 既設建築物設備工事業
E8: 労 働 保 険 番 号 | F8: 府 県 | H8: 所掌 | I8: 管 轄 | K8: 基 幹 番 号 | Q8: 枝 番 号 | U8: 代表者名 | AB8: 36 機械装置(組立て又は取付け）
F9: 1 | G9: 9 | H9: 1 | I9: 0 | J9: 2 | K9: 9 | L9: 3 | M9: 3 | N9: 0 | O9: 7 | P9: 5 | U9: 電話番号 | AB9: 36 機械装置(その他のもの）
AB10: 37 その他の建設事業
E11: 事 業 の 名 称 | F11: 事業場の所在地 | K11: 事業の期間 | O11: ① | P11: 請負金額の内訳 | W11: 消費税対応の 報告請負額 | X11: ② | Y11: ③ | Z11: 事業の種類 | AB11: 31水力発電施設、ずい道等新設事業
O12: 請負代金の額 | S12: 請負代金に 加算する額 | U12: 請負代金から 控除する額 | V12: 請負代金 | X12: 労務 費率 | Y12: 賃 金 総 額
A14: =RANK(B14,$B$14:$B$149,2) -> 1 | B14: =IF(E14=0,99999,C15*100+COUNTIF($C$13:C15,C15)) -> 99999 | D14: =IF(Z14=$AB$9,36.5,LEFT(Z14,2))*1 ->  | K14: 2023-04-01 | N14: から | R14: 円 | T14: 円 | U14: 円 | V14: 円
A15: =A14+0.1 -> 1.1 | C15: =D14*10+D15 ->  | D15: =VLOOKUP(K14,コード!$D$2:$F$5,3) -> 3 | K15: 2024-03-31 | N15: まで | V15: =IF(E14=0,"",IF(AND(OR($K$16=0,K15=0),NOT($O$17=0)),"事業期間入力",IF(OR(K15<$B$6,K15>$B$7),"対象期間外",O15+S15-U15))) ->  | W15: =IF($G$6="税抜",TRUNC(V15*IF(K14<$AA$1,1.05,1)),TRUNC(V15*100/VLOOKUP(K15,$AD$2:$AE$4,2))) ->  | X15: =IF(B14=99999,"",VLOOKUP(C15,総括表!$B$12:$C$64,2,0)) ->  | Y15: =IF(X15="","",TRUNC(W15*X15/100)) ->  | AB15: =VLOOKUP(K15,AD2:AE4,2) -> 110
A16: =RANK(B16,$B$14:$B$149,2) -> 1 | B16: =IF(E16=0,99999,C17*100+COUNTIF($C$13:C17,C17)) -> 99999 | D16: =IF(Z16=$AB$9,36.5,LEFT(Z16,2))*1 ->  | N16: から
A17: =A16+0.1 -> 1.1 | C17: =D16*10+D17 ->  | D17: =VLOOKUP(K16,コード!$D$2:$F$5,3) -> 1 | N17: まで | V17: =IF(E16=0,"",IF(AND(OR($K$16=0,K17=0),NOT($O$17=0)),"事業期間入力",IF(OR(K17<$B$6,K17>$B$7),"対象期間外",O17+S17-U17))) ->  | W17: =IF($G$6="税抜",TRUNC(V17*IF(K16<$AA$1,1.05,1)),TRUNC(V17*100/VLOOKUP(K17,$AD$2:$AE$4,2))) ->  | X17: =IF(B16=99999,"",VLOOKUP(C17,総括表!$B$12:$C$64,2,0)) ->  | Y17: =IF(X17="","",TRUNC(W17*X17/100)) -> 
A18: =RANK(B18,$B$14:$B$149,2) -> 1 | B18: =IF(E18=0,99999,C19*100+COUNTIF($C$13:C19,C19)) -> 99999 | D18: =IF(Z18=$AB$9,36.5,LEFT(Z18,2))*1 ->  | N18: から
A19: =A18+0.1 -> 1.1 | C19: =D18*10+D19 ->  | D19: =VLOOKUP(K18,コード!$D$2:$F$5,3) -> 1 | N19: まで | W19: =IF($G$6="税抜",TRUNC(V19*IF(K18<$AA$1,1.05,1)),TRUNC(V19*100/VLOOKUP(K19,$AD$2:$AE$4,2))) ->  | X19: =IF(B18=99999,"",VLOOKUP(C19,総括表!$B$12:$C$64,2,0)) -> 
A20: =RANK(B20,$B$14:$B$149,2) -> 1 | B20: =IF(E20=0,99999,C21*100+COUNTIF($C$13:C21,C21)) -> 99999 | D20: =IF(Z20=$AB$9,36.5,LEFT(Z20,2))*1 ->  | N20: から | V20: =IF(E19=0,"",IF(AND(OR($K$16=0,K20=0),NOT($O$17=0)),"事業期間入力",IF(OR(K20<$B$6,K20>$B$7),"対象期間外",O20+S20-U20))) -> 
A21: =A20+0.1 -> 1.1 | C21: =D20*10+D21 ->  | D21: =VLOOKUP(K20,コード!$D$2:$F$5,3) -> 1 | N21: まで | V21: =IF(E20=0,"",IF(AND(OR($K$16=0,K21=0),NOT($O$17=0)),"事業期間入力",IF(OR(K21<$B$6,K21>$B$7),"対象期間外",O21+S21-U21))) ->  | W21: =IF($G$6="税抜",TRUNC(V21*IF(K20<$AA$1,1.05,1)),TRUNC(V21*100/VLOOKUP(K21,$AD$2:$AE$4,2))) ->  | X21: =IF(B20=99999,"",VLOOKUP(C21,総括表!$B$12:$C$64,2,0)) -> 
A22: =RANK(B22,$B$14:$B$149,2) -> 1 | B22: =IF(E22=0,99999,C23*100+COUNTIF($C$13:C23,C23)) -> 99999 | D22: =IF(Z22=$AB$9,36.5,LEFT(Z22,2))*1 ->  | N22: から
A23: =A22+0.1 -> 1.1 | C23: =D22*10+D23 ->  | D23: =VLOOKUP(K22,コード!$D$2:$F$5,3) -> 1 | N23: まで | V23: =IF(E22=0,"",IF(AND(OR($K$16=0,K23=0),NOT($O$17=0)),"事業期間入力",IF(OR(K23<$B$6,K23>$B$7),"対象期間外",O23+S23-U23))) ->  | W23: =IF($G$6="税抜",TRUNC(V23*IF(K22<$AA$1,1.05,1)),TRUNC(V23*100/VLOOKUP(K23,$AD$2:$AE$4,2))) ->  | X23: =IF(B22=99999,"",VLOOKUP(C23,総括表!$B$12:$C$64,2,0)) -> 
A24: =RANK(B24,$B$14:$B$149,2) -> 1 | B24: =IF(E24=0,99999,C25*100+COUNTIF($C$13:C25,C25)) -> 99999 | D24: =IF(Z24=$AB$9,36.5,LEFT(Z24,2))*1 ->  | N24: から | V24: =IF(E23=0,"",IF(AND(OR($K$16=0,K24=0),NOT($O$17=0)),"事業期間入力",IF(OR(K24<$B$6,K24>$B$7),"対象期間外",O24+S24-U24))) -> 
A25: =A24+0.1 -> 1.1 | C25: =D24*10+D25 ->  | D25: =VLOOKUP(K24,コード!$D$2:$F$5,3) -> 1 | N25: まで | V25: =IF(E24=0,"",IF(AND(OR($K$16=0,K25=0),NOT($O$17=0)),"事業期間入力",IF(OR(K25<$B$6,K25>$B$7),"対象期間外",O25+S25-U25))) ->  | W25: =IF($G$6="税抜",TRUNC(V25*IF(K24<$AA$1,1.05,1)),TRUNC(V25*100/VLOOKUP(K25,$AD$2:$AE$4,2))) ->  | X25: =IF(B24=99999,"",VLOOKUP(C25,総括表!$B$12:$C$64,2,0)) ->  | Y25: =IF(X25="","",TRUNC(W25*X25/100)) -> 
A26: =RANK(B26,$B$14:$B$149,2) -> 1 | B26: =IF(E26=0,99999,C27*100+COUNTIF($C$13:C27,C27)) -> 99999 | D26: =IF(Z26=$AB$9,36.5,LEFT(Z26,2))*1 ->  | N26: から
A27: =A26+0.1 -> 1.1 | C27: =D26*10+D27 ->  | D27: =VLOOKUP(K26,コード!$D$2:$F$5,3) -> 1 | N27: まで | W27: =IF($G$6="税抜",TRUNC(V27*IF(K26<$AA$1,1.05,1)),TRUNC(V27*100/VLOOKUP(K27,$AD$2:$AE$4,2))) ->  | X27: =IF(B26=99999,"",VLOOKUP(C27,総括表!$B$12:$C$64,2,0)) ->  | Y27: =IF(X27="","",TRUNC(W27*X27/100)) -> 
A28: =RANK(B28,$B$14:$B$149,2) -> 1 | B28: =IF(E28=0,99999,C29*100+COUNTIF($C$13:C29,C29)) -> 99999 | D28: =IF(Z28=$AB$9,36.5,LEFT(Z28,2))*1 ->  | N28: から
A29: =A28+0.1 -> 1.1 | C29: =D28*10+D29 ->  | D29: =VLOOKUP(K28,コード!$D$2:$F$5,3) -> 1 | N29: まで | W29: =IF($G$6="税抜",TRUNC(V29*IF(K28<$AA$1,1.05,1)),TRUNC(V29*100/VLOOKUP(K29,$AD$2:$AE$4,2))) ->  | X29: =IF(B28=99999,"",VLOOKUP(C29,総括表!$B$12:$C$64,2,0)) ->  | Y29: =IF(X29="","",TRUNC(W29*X29/100)) -> 
A30: =RANK(B30,$B$14:$B$149,2) -> 1 | B30: =IF(E30=0,99999,C31*100+COUNTIF($C$13:C31,C31)) -> 99999 | D30: =IF(Z30=$AB$9,36.5,LEFT(Z30,2))*1 ->  | N30: から
A31: =A30+0.1 -> 1.1 | C31: =D30*10+D31 ->  | D31: =VLOOKUP(K30,コード!$D$2:$F$5,3) -> 1 | N31: まで | W31: =IF($G$6="税抜",TRUNC(V31*IF(K30<$AA$1,1.05,1)),TRUNC(V31*100/VLOOKUP(K31,$AD$2:$AE$4,2))) ->  | X31: =IF(B30=99999,"",VLOOKUP(C31,総括表!$B$12:$C$64,2,0)) ->  | Y31: =IF(X31="","",TRUNC(W31*X31/100)) -> 
A32: =RANK(B32,$B$14:$B$149,2) -> 1 | B32: =IF(E32=0,99999,C33*100+COUNTIF($C$13:C33,C33)) -> 99999 | D32: =IF(Z32=$AB$9,36.5,LEFT(Z32,2))*1 ->  | N32: から
A33: =A32+0.1 -> 1.1 | C33: =D32*10+D33 ->  | D33: =VLOOKUP(K32,コード!$D$2:$F$5,3) -> 1 | N33: まで | W33: =IF($G$6="税抜",TRUNC(V33*IF(K32<$AA$1,1.05,1)),TRUNC(V33*100/VLOOKUP(K33,$AD$2:$AE$4,2))) ->  | X33: =IF(B32=99999,"",VLOOKUP(C33,総括表!$B$12:$C$64,2,0)) ->  | Y33: =IF(X33="","",TRUNC(W33*X33/100)) -> 
A34: =RANK(B34,$B$14:$B$149,2) -> 1 | B34: =IF(E34=0,99999,C35*100+COUNTIF($C$13:C35,C35)) -> 99999 | D34: =IF(Z34=$AB$9,36.5,LEFT(Z34,2))*1 ->  | N34: から
A35: =A34+0.1 -> 1.1 | C35: =D34*10+D35 ->  | D35: =VLOOKUP(K34,コード!$D$2:$F$5,3) -> 1 | N35: まで | W35: =IF($G$6="税抜",TRUNC(V35*IF(K34<$AA$1,1.05,1)),TRUNC(V35*100/VLOOKUP(K35,$AD$2:$AE$4,2))) ->  | X35: =IF(B34=99999,"",VLOOKUP(C35,総括表!$B$12:$C$64,2,0)) ->  | Y35: =IF(X35="","",TRUNC(W35*X35/100)) -> 
A36: =RANK(B36,$B$14:$B$149,2) -> 1 | B36: =IF(E36=0,99999,C37*100+COUNTIF($C$13:C37,C37)) -> 99999 | D36: =IF(Z36=$AB$9,36.5,LEFT(Z36,2))*1 ->  | N36: から
A37: =A36+0.1 -> 1.1 | C37: =D36*10+D37 ->  | D37: =VLOOKUP(K36,コード!$D$2:$F$5,3) -> 1 | N37: まで | W37: =IF($G$6="税抜",TRUNC(V37*IF(K36<$AA$1,1.05,1)),TRUNC(V37*100/VLOOKUP(K37,$AD$2:$AE$4,2))) ->  | X37: =IF(B36=99999,"",VLOOKUP(C37,総括表!$B$12:$C$64,2,0)) ->  | Y37: =IF(X37="","",TRUNC(W37*X37/100)) -> 
A38: =RANK(B38,$B$14:$B$149,2) -> 1 | B38: =IF(E38=0,99999,C39*100+COUNTIF($C$13:C39,C39)) -> 99999 | D38: =IF(Z38=$AB$9,36.5,LEFT(Z38,2))*1 ->  | N38: から
A39: =A38+0.1 -> 1.1 | C39: =D38*10+D39 ->  | D39: =VLOOKUP(K38,コード!$D$2:$F$5,3) -> 1 | N39: まで | W39: =IF($G$6="税抜",TRUNC(V39*IF(K38<$AA$1,1.05,1)),TRUNC(V39*100/VLOOKUP(K39,$AD$2:$AE$4,2))) ->  | X39: =IF(B38=99999,"",VLOOKUP(C39,総括表!$B$12:$C$64,2,0)) ->  | Y39: =IF(X39="","",TRUNC(W39*X39/100)) -> 
A40: =RANK(B40,$B$14:$B$149,2) -> 1 | B40: =IF(E40=0,99999,C41*100+COUNTIF($C$13:C41,C41)) -> 99999 | D40: =IF(Z40=$AB$9,36.5,LEFT(Z40,2))*1 ->  | N40: から
A41: =A40+0.1 -> 1.1 | C41: =D40*10+D41 ->  | D41: =VLOOKUP(K40,コード!$D$2:$F$5,3) -> 1 | N41: まで | W41: =IF($G$6="税抜",TRUNC(V41*IF(K40<$AA$1,1.05,1)),TRUNC(V41*100/VLOOKUP(K41,$AD$2:$AE$4,2))) ->  | X41: =IF(B40=99999,"",VLOOKUP(C41,総括表!$B$12:$C$64,2,0)) ->  | Y41: =IF(X41="","",TRUNC(W41*X41/100)) -> 
A42: =RANK(B42,$B$14:$B$149,2) -> 1 | B42: =IF(E42=0,99999,C43*100+COUNTIF($C$13:C43,C43)) -> 99999 | D42: =IF(Z42=$AB$9,36.5,LEFT(Z42,2))*1 ->  | N42: から
A43: =A42+0.1 -> 1.1 | C43: =D42*10+D43 ->  | D43: =VLOOKUP(K42,コード!$D$2:$F$5,3) -> 1 | N43: まで | W43: =IF($G$6="税抜",TRUNC(V43*IF(K42<$AA$1,1.05,1)),TRUNC(V43*100/VLOOKUP(K43,$AD$2:$AE$4,2))) ->  | X43: =IF(B42=99999,"",VLOOKUP(C43,総括表!$B$12:$C$64,2,0)) ->  | Y43: =IF(X43="","",TRUNC(W43*X43/100)) -> 
A44: =RANK(B44,$B$14:$B$149,2) -> 1 | B44: =IF(E44=0,99999,C45*100+COUNTIF($C$13:C45,C45)) -> 99999 | D44: =IF(Z44=$AB$9,36.5,LEFT(Z44,2))*1 ->  | N44: から
A45: =A44+0.1 -> 1.1 | C45: =D44*10+D45 ->  | D45: =VLOOKUP(K44,コード!$D$2:$F$5,3) -> 1 | N45: まで | W45: =IF($G$6="税抜",TRUNC(V45*IF(K44<$AA$1,1.05,1)),TRUNC(V45*100/VLOOKUP(K45,$AD$2:$AE$4,2))) ->  | X45: =IF(B44=99999,"",VLOOKUP(C45,総括表!$B$12:$C$64,2,0)) ->  | Y45: =IF(X45="","",TRUNC(W45*X45/100)) -> 
A46: =RANK(B46,$B$14:$B$149,2) -> 1 | B46: =IF(E46=0,99999,C47*100+COUNTIF($C$13:C47,C47)) -> 99999 | D46: =IF(Z46=$AB$9,36.5,LEFT(Z46,2))*1 ->  | N46: から
A47: =A46+0.1 -> 1.1 | C47: =D46*10+D47 ->  | D47: =VLOOKUP(K46,コード!$D$2:$F$5,3) -> 1 | N47: まで | W47: =IF($G$6="税抜",TRUNC(V47*IF(K46<$AA$1,1.05,1)),TRUNC(V47*100/VLOOKUP(K47,$AD$2:$AE$4,2))) ->  | X47: =IF(B46=99999,"",VLOOKUP(C47,総括表!$B$12:$C$64,2,0)) ->  | Y47: =IF(X47="","",TRUNC(W47*X47/100)) -> 
A48: =RANK(B48,$B$14:$B$149,2) -> 1 | B48: =IF(E48=0,99999,C49*100+COUNTIF($C$13:C49,C49)) -> 99999 | D48: =IF(Z48=$AB$9,36.5,LEFT(Z48,2))*1 ->  | N48: から
A49: =A48+0.1 -> 1.1 | C49: =D48*10+D49 ->  | D49: =VLOOKUP(K48,コード!$D$2:$F$5,3) -> 1 | N49: まで | W49: =IF($G$6="税抜",TRUNC(V49*IF(K48<$AA$1,1.05,1)),TRUNC(V49*100/VLOOKUP(K49,$AD$2:$AE$4,2))) ->  | X49: =IF(B48=99999,"",VLOOKUP(C49,総括表!$B$12:$C$64,2,0)) ->  | Y49: =IF(X49="","",TRUNC(W49*X49/100)) -> 
A50: =RANK(B50,$B$14:$B$149,2) -> 1 | B50: =IF(E50=0,99999,C51*100+COUNTIF($C$13:C51,C51)) -> 99999 | D50: =IF(Z50=$AB$9,36.5,LEFT(Z50,2))*1 ->  | N50: から
A51: =A50+0.1 -> 1.1 | C51: =D50*10+D51 ->  | D51: =VLOOKUP(K50,コード!$D$2:$F$5,3) -> 1 | N51: まで | W51: =IF($G$6="税抜",TRUNC(V51*IF(K50<$AA$1,1.05,1)),TRUNC(V51*100/VLOOKUP(K51,$AD$2:$AE$4,2))) ->  | X51: =IF(B50=99999,"",VLOOKUP(C51,総括表!$B$12:$C$64,2,0)) ->  | Y51: =IF(X51="","",TRUNC(W51*X51/100)) -> 
A52: =RANK(B52,$B$14:$B$149,2) -> 1 | B52: =IF(E52=0,99999,C53*100+COUNTIF($C$13:C53,C53)) -> 99999 | D52: =IF(Z52=$AB$9,36.5,LEFT(Z52,2))*1 ->  | N52: から
A53: =A52+0.1 -> 1.1 | C53: =D52*10+D53 ->  | D53: =VLOOKUP(K52,コード!$D$2:$F$5,3) -> 1 | N53: まで | W53: =IF($G$6="税抜",TRUNC(V53*IF(K52<$AA$1,1.05,1)),TRUNC(V53*100/VLOOKUP(K53,$AD$2:$AE$4,2))) ->  | X53: =IF(B52=99999,"",VLOOKUP(C53,総括表!$B$12:$C$64,2,0)) ->  | Y53: =IF(X53="","",TRUNC(W53*X53/100)) -> 
A54: =RANK(B54,$B$14:$B$149,2) -> 1 | B54: =IF(E54=0,99999,C55*100+COUNTIF($C$13:C55,C55)) -> 99999 | D54: =IF(Z54=$AB$9,36.5,LEFT(Z54,2))*1 ->  | N54: から
A55: =A54+0.1 -> 1.1 | C55: =D54*10+D55 ->  | D55: =VLOOKUP(K54,コード!$D$2:$F$5,3) -> 1 | N55: まで | W55: =IF($G$6="税抜",TRUNC(V55*IF(K54<$AA$1,1.05,1)),TRUNC(V55*100/VLOOKUP(K55,$AD$2:$AE$4,2))) ->  | X55: =IF(B54=99999,"",VLOOKUP(C55,総括表!$B$12:$C$64,2,0)) ->  | Y55: =IF(X55="","",TRUNC(W55*X55/100)) -> 
A56: =RANK(B56,$B$14:$B$149,2) -> 1 | B56: =IF(E56=0,99999,C57*100+COUNTIF($C$13:C57,C57)) -> 99999 | D56: =IF(Z56=$AB$9,36.5,LEFT(Z56,2))*1 ->  | N56: から
A57: =A56+0.1 -> 1.1 | C57: =D56*10+D57 ->  | D57: =VLOOKUP(K56,コード!$D$2:$F$5,3) -> 1 | N57: まで | W57: =IF($G$6="税抜",TRUNC(V57*IF(K56<$AA$1,1.05,1)),TRUNC(V57*100/VLOOKUP(K57,$AD$2:$AE$4,2))) ->  | X57: =IF(B56=99999,"",VLOOKUP(C57,総括表!$B$12:$C$64,2,0)) ->  | Y57: =IF(X57="","",TRUNC(W57*X57/100)) -> 
A58: =RANK(B58,$B$14:$B$149,2) -> 1 | B58: =IF(E58=0,99999,C59*100+COUNTIF($C$13:C59,C59)) -> 99999 | D58: =IF(Z58=$AB$9,36.5,LEFT(Z58,2))*1 ->  | N58: から
A59: =A58+0.1 -> 1.1 | C59: =D58*10+D59 ->  | D59: =VLOOKUP(K58,コード!$D$2:$F$5,3) -> 1 | N59: まで | W59: =IF($G$6="税抜",TRUNC(V59*IF(K58<$AA$1,1.05,1)),TRUNC(V59*100/VLOOKUP(K59,$AD$2:$AE$4,2))) ->  | X59: =IF(B58=99999,"",VLOOKUP(C59,総括表!$B$12:$C$64,2,0)) ->  | Y59: =IF(X59="","",TRUNC(W59*X59/100)) -> 
A60: =RANK(B60,$B$14:$B$149,2) -> 1 | B60: =IF(E60=0,99999,C61*100+COUNTIF($C$13:C61,C61)) -> 99999 | D60: =IF(Z60=$AB$9,36.5,LEFT(Z60,2))*1 ->  | N60: から
A61: =A60+0.1 -> 1.1 | C61: =D60*10+D61 ->  | D61: =VLOOKUP(K60,コード!$D$2:$F$5,3) -> 1 | N61: まで | W61: =IF($G$6="税抜",TRUNC(V61*IF(K60<$AA$1,1.05,1)),TRUNC(V61*100/VLOOKUP(K61,$AD$2:$AE$4,2))) ->  | X61: =IF(B60=99999,"",VLOOKUP(C61,総括表!$B$12:$C$64,2,0)) ->  | Y61: =IF(X61="","",TRUNC(W61*X61/100)) -> 
A62: =RANK(B62,$B$14:$B$149,2) -> 1 | B62: =IF(E62=0,99999,C63*100+COUNTIF($C$13:C63,C63)) -> 99999 | D62: =IF(Z62=$AB$9,36.5,LEFT(Z62,2))*1 ->  | N62: から
A63: =A62+0.1 -> 1.1 | C63: =D62*10+D63 ->  | D63: =VLOOKUP(K62,コード!$D$2:$F$5,3) -> 1 | N63: まで | W63: =IF($G$6="税抜",TRUNC(V63*IF(K62<$AA$1,1.05,1)),TRUNC(V63*100/VLOOKUP(K63,$AD$2:$AE$4,2))) ->  | X63: =IF(B62=99999,"",VLOOKUP(C63,総括表!$B$12:$C$64,2,0)) ->  | Y63: =IF(X63="","",TRUNC(W63*X63/100)) -> 
A64: =RANK(B64,$B$14:$B$149,2) -> 1 | B64: =IF(E64=0,99999,C65*100+COUNTIF($C$13:C65,C65)) -> 99999 | D64: =IF(Z64=$AB$9,36.5,LEFT(Z64,2))*1 ->  | N64: から
A65: =A64+0.1 -> 1.1 | C65: =D64*10+D65 ->  | D65: =VLOOKUP(K64,コード!$D$2:$F$5,3) -> 1 | N65: まで | W65: =IF($G$6="税抜",TRUNC(V65*IF(K64<$AA$1,1.05,1)),TRUNC(V65*100/VLOOKUP(K65,$AD$2:$AE$4,2))) ->  | X65: =IF(B64=99999,"",VLOOKUP(C65,総括表!$B$12:$C$64,2,0)) ->  | Y65: =IF(X65="","",TRUNC(W65*X65/100)) -> 
A66: =RANK(B66,$B$14:$B$149,2) -> 1 | B66: =IF(E66=0,99999,C67*100+COUNTIF($C$13:C67,C67)) -> 99999 | D66: =IF(Z66=$AB$9,36.5,LEFT(Z66,2))*1 ->  | N66: から
A67: =A66+0.1 -> 1.1 | C67: =D66*10+D67 ->  | D67: =VLOOKUP(K66,コード!$D$2:$F$5,3) -> 1 | N67: まで | W67: =IF($G$6="税抜",TRUNC(V67*IF(K66<$AA$1,1.05,1)),TRUNC(V67*100/VLOOKUP(K67,$AD$2:$AE$4,2))) ->  | X67: =IF(B66=99999,"",VLOOKUP(C67,総括表!$B$12:$C$64,2,0)) ->  | Y67: =IF(X67="","",TRUNC(W67*X67/100)) -> 
A68: =RANK(B68,$B$14:$B$149,2) -> 1 | B68: =IF(E68=0,99999,C69*100+COUNTIF($C$13:C69,C69)) -> 99999 | D68: =IF(Z68=$AB$9,36.5,LEFT(Z68,2))*1 ->  | N68: から
A69: =A68+0.1 -> 1.1 | C69: =D68*10+D69 ->  | D69: =VLOOKUP(K68,コード!$D$2:$F$5,3) -> 1 | N69: まで | W69: =IF($G$6="税抜",TRUNC(V69*IF(K68<$AA$1,1.05,1)),TRUNC(V69*100/VLOOKUP(K69,$AD$2:$AE$4,2))) ->  | X69: =IF(B68=99999,"",VLOOKUP(C69,総括表!$B$12:$C$64,2,0)) ->  | Y69: =IF(X69="","",TRUNC(W69*X69/100)) -> 
A70: =RANK(B70,$B$14:$B$149,2) -> 1 | B70: =IF(E70=0,99999,C71*100+COUNTIF($C$13:C71,C71)) -> 99999 | D70: =IF(Z70=$AB$9,36.5,LEFT(Z70,2))*1 ->  | N70: から
A71: =A70+0.1 -> 1.1 | C71: =D70*10+D71 ->  | D71: =VLOOKUP(K70,コード!$D$2:$F$5,3) -> 1 | N71: まで | W71: =IF($G$6="税抜",TRUNC(V71*IF(K70<$AA$1,1.05,1)),TRUNC(V71*100/VLOOKUP(K71,$AD$2:$AE$4,2))) ->  | X71: =IF(B70=99999,"",VLOOKUP(C71,総括表!$B$12:$C$64,2,0)) ->  | Y71: =IF(X71="","",TRUNC(W71*X71/100)) -> 
A72: =RANK(B72,$B$14:$B$149,2) -> 1 | B72: =IF(E72=0,99999,C73*100+COUNTIF($C$13:C73,C73)) -> 99999 | D72: =IF(Z72=$AB$9,36.5,LEFT(Z72,2))*1 ->  | N72: から
A73: =A72+0.1 -> 1.1 | C73: =D72*10+D73 ->  | D73: =VLOOKUP(K72,コード!$D$2:$F$5,3) -> 1 | N73: まで | W73: =IF($G$6="税抜",TRUNC(V73*IF(K72<$AA$1,1.05,1)),TRUNC(V73*100/VLOOKUP(K73,$AD$2:$AE$4,2))) ->  | X73: =IF(B72=99999,"",VLOOKUP(C73,総括表!$B$12:$C$64,2,0)) ->  | Y73: =IF(X73="","",TRUNC(W73*X73/100)) -> 
A74: =RANK(B74,$B$14:$B$149,2) -> 1 | B74: =IF(E74=0,99999,C75*100+COUNTIF($C$13:C75,C75)) -> 99999 | D74: =IF(Z74=$AB$9,36.5,LEFT(Z74,2))*1 ->  | N74: から
A75: =A74+0.1 -> 1.1 | C75: =D74*10+D75 ->  | D75: =VLOOKUP(K74,コード!$D$2:$F$5,3) -> 1 | N75: まで | W75: =IF($G$6="税抜",TRUNC(V75*IF(K74<$AA$1,1.05,1)),TRUNC(V75*100/VLOOKUP(K75,$AD$2:$AE$4,2))) ->  | X75: =IF(B74=99999,"",VLOOKUP(C75,総括表!$B$12:$C$64,2,0)) ->  | Y75: =IF(X75="","",TRUNC(W75*X75/100)) -> 
A76: =RANK(B76,$B$14:$B$149,2) -> 1 | B76: =IF(E76=0,99999,C77*100+COUNTIF($C$13:C77,C77)) -> 99999 | D76: =IF(Z76=$AB$9,36.5,LEFT(Z76,2))*1 ->  | N76: から
A77: =A76+0.1 -> 1.1 | C77: =D76*10+D77 ->  | D77: =VLOOKUP(K76,コード!$D$2:$F$5,3) -> 1 | N77: まで | V77: =O77+S77-U77 -> 0 | X77: =IF(B76=99999,"",VLOOKUP(C77,総括表!$B$12:$C$64,2,0)) ->  | Y77: =IF(X77="","",TRUNC(V77*X77/100)) -> 
A78: =RANK(B78,$B$14:$B$149,2) -> 1 | B78: =IF(E78=0,99999,C79*100+COUNTIF($C$13:C79,C79)) -> 99999 | D78: =IF(Z78=$AB$9,36.5,LEFT(Z78,2))*1 ->  | N78: から
A79: =A78+0.1 -> 1.1 | C79: =D78*10+D79 ->  | D79: =VLOOKUP(K78,コード!$D$2:$F$5,3) -> 1 | N79: まで | V79: =O79+S79-U79 -> 0 | X79: =IF(B78=99999,"",VLOOKUP(C79,総括表!$B$12:$C$64,2,0)) -> 
A80: =RANK(B80,$B$14:$B$149,2) -> 1 | B80: =IF(E80=0,99999,C81*100+COUNTIF($C$13:C81,C81)) -> 99999 | D80: =IF(Z80=$AB$9,36.5,LEFT(Z80,2))*1 ->  | N80: から
A81: =A80+0.1 -> 1.1 | C81: =D80*10+D81 ->  | D81: =VLOOKUP(K80,コード!$D$2:$F$5,3) -> 1 | N81: まで | V81: =O81+S81-U81 -> 0 | X81: =IF(B80=99999,"",VLOOKUP(C81,総括表!$B$12:$C$64,2,0)) -> 
A82: =RANK(B82,$B$14:$B$149,2) -> 1 | B82: =IF(E82=0,99999,C83*100+COUNTIF($C$13:C83,C83)) -> 99999 | D82: =IF(Z82=$AB$9,36.5,LEFT(Z82,2))*1 ->  | N82: から
A83: =A82+0.1 -> 1.1 | C83: =D82*10+D83 ->  | D83: =VLOOKUP(K82,コード!$D$2:$F$5,3) -> 1 | N83: まで | V83: =O83+S83-U83 -> 0 | X83: =IF(B82=99999,"",VLOOKUP(C83,総括表!$B$12:$C$64,2,0)) -> 
A84: =RANK(B84,$B$14:$B$149,2) -> 1 | B84: =IF(E84=0,99999,C85*100+COUNTIF($C$13:C85,C85)) -> 99999 | D84: =IF(Z84=$AB$9,36.5,LEFT(Z84,2))*1 ->  | N84: から
A85: =A84+0.1 -> 1.1 | C85: =D84*10+D85 ->  | D85: =VLOOKUP(K84,コード!$D$2:$F$5,3) -> 1 | N85: まで | V85: 0 | X85: =IF(B84=99999,"",VLOOKUP(C85,総括表!$B$12:$C$64,2,0)) -> 
A86: =RANK(B86,$B$14:$B$149,2) -> 1 | B86: =IF(E86=0,99999,C87*100+COUNTIF($C$13:C87,C87)) -> 99999 | D86: =IF(Z86=$AB$9,36.5,LEFT(Z86,2))*1 ->  | N86: から
A87: =A86+0.1 -> 1.1 | C87: =D86*10+D87 ->  | D87: =VLOOKUP(K86,コード!$D$2:$F$5,3) -> 1 | N87: まで | V87: 0 | X87: =IF(B86=99999,"",VLOOKUP(C87,総括表!$B$12:$C$64,2,0)) -> 
A88: =RANK(B88,$B$14:$B$149,2) -> 1 | B88: =IF(E88=0,99999,C89*100+COUNTIF($C$13:C89,C89)) -> 99999 | D88: =IF(Z88=$AB$9,36.5,LEFT(Z88,2))*1 ->  | N88: から
A89: =A88+0.1 -> 1.1 | C89: =D88*10+D89 ->  | D89: =VLOOKUP(K88,コード!$D$2:$F$5,3) -> 1 | N89: まで | V89: 0 | X89: =IF(B88=99999,"",VLOOKUP(C89,総括表!$B$12:$C$64,2,0)) ->  | Y89: =IF(X89="","",TRUNC(V89*X89/100)) -> 
A90: =RANK(B90,$B$14:$B$149,2) -> 1 | B90: =IF(E90=0,99999,C91*100+COUNTIF($C$13:C91,C91)) -> 99999 | D90: =IF(Z90=$AB$9,36.5,LEFT(Z90,2))*1 ->  | N90: から
A91: =A90+0.1 -> 1.1 | C91: =D90*10+D91 ->  | D91: =VLOOKUP(K90,コード!$D$2:$F$5,3) -> 1 | N91: まで | V91: 0 | X91: =IF(B90=99999,"",VLOOKUP(C91,総括表!$B$12:$C$64,2,0)) -> 
A92: =RANK(B92,$B$14:$B$149,2) -> 1 | B92: =IF(E92=0,99999,C93*100+COUNTIF($C$13:C93,C93)) -> 99999 | D92: =IF(Z92=$AB$9,36.5,LEFT(Z92,2))*1 ->  | N92: から
A93: =A92+0.1 -> 1.1 | C93: =D92*10+D93 ->  | D93: =VLOOKUP(K92,コード!$D$2:$F$5,3) -> 1 | N93: まで | V93: 0 | X93: =IF(B92=99999,"",VLOOKUP(C93,総括表!$B$12:$C$64,2,0)) -> 
A94: =RANK(B94,$B$14:$B$149,2) -> 1 | B94: =IF(E94=0,99999,C95*100+COUNTIF($C$13:C95,C95)) -> 99999 | D94: =IF(Z94=$AB$9,36.5,LEFT(Z94,2))*1 ->  | N94: から
A95: =A94+0.1 -> 1.1 | C95: =D94*10+D95 ->  | D95: =VLOOKUP(K94,コード!$D$2:$F$5,3) -> 1 | N95: まで | V95: 0 | X95: =IF(B94=99999,"",VLOOKUP(C95,総括表!$B$12:$C$64,2,0)) -> 
A96: =RANK(B96,$B$14:$B$149,2) -> 1 | B96: =IF(E96=0,99999,C97*100+COUNTIF($C$13:C97,C97)) -> 99999 | D96: =IF(Z96=$AB$9,36.5,LEFT(Z96,2))*1 ->  | N96: から
A97: =A96+0.1 -> 1.1 | C97: =D96*10+D97 ->  | D97: =VLOOKUP(K96,コード!$D$2:$F$5,3) -> 1 | N97: まで | V97: 0 | X97: =IF(B96=99999,"",VLOOKUP(C97,総括表!$B$12:$C$64,2,0)) -> 
A98: =RANK(B98,$B$14:$B$149,2) -> 1 | B98: =IF(E98=0,99999,C99*100+COUNTIF($C$13:C99,C99)) -> 99999 | D98: =IF(Z98=$AB$9,36.5,LEFT(Z98,2))*1 ->  | N98: から
A99: =A98+0.1 -> 1.1 | C99: =D98*10+D99 ->  | D99: =VLOOKUP(K98,コード!$D$2:$F$5,3) -> 1 | N99: まで | V99: 0 | X99: =IF(B98=99999,"",VLOOKUP(C99,総括表!$B$12:$C$64,2,0)) -> 
A100: =RANK(B100,$B$14:$B$149,2) -> 1 | B100: =IF(E100=0,99999,C101*100+COUNTIF($C$13:C101,C101)) -> 99999 | D100: =IF(Z100=$AB$9,36.5,LEFT(Z100,2))*1 ->  | N100: から
A101: =A100+0.1 -> 1.1 | C101: =D100*10+D101 ->  | D101: =VLOOKUP(K100,コード!$D$2:$F$5,3) -> 1 | N101: まで | V101: 0 | X101: =IF(B100=99999,"",VLOOKUP(C101,総括表!$B$12:$C$64,2,0)) -> 
A102: =RANK(B102,$B$14:$B$149,2) -> 1 | B102: =IF(E102=0,99999,C103*100+COUNTIF($C$13:C103,C103)) -> 99999 | D102: =IF(Z102=$AB$9,36.5,LEFT(Z102,2))*1 ->  | N102: から
A103: =A102+0.1 -> 1.1 | C103: =D102*10+D103 ->  | D103: =VLOOKUP(K102,コード!$D$2:$F$5,3) -> 1 | N103: まで | V103: 0 | X103: =IF(B102=99999,"",VLOOKUP(C103,総括表!$B$12:$C$64,2,0)) -> 
A104: =RANK(B104,$B$14:$B$149,2) -> 1 | B104: =IF(E104=0,99999,C105*100+COUNTIF($C$13:C105,C105)) -> 99999 | D104: =IF(Z104=$AB$9,36.5,LEFT(Z104,2))*1 ->  | N104: から
A105: =A104+0.1 -> 1.1 | C105: =D104*10+D105 ->  | D105: =VLOOKUP(K104,コード!$D$2:$F$5,3) -> 1 | N105: まで | V105: 0 | X105: =IF(B104=99999,"",VLOOKUP(C105,総括表!$B$12:$C$64,2,0)) -> 
A106: =RANK(B106,$B$14:$B$149,2) -> 1 | B106: =IF(E106=0,99999,C107*100+COUNTIF($C$13:C107,C107)) -> 99999 | D106: =IF(Z106=$AB$9,36.5,LEFT(Z106,2))*1 ->  | N106: から
A107: =A106+0.1 -> 1.1 | C107: =D106*10+D107 ->  | D107: =VLOOKUP(K106,コード!$D$2:$F$5,3) -> 1 | N107: まで | V107: 0 | X107: =IF(B106=99999,"",VLOOKUP(C107,総括表!$B$12:$C$64,2,0)) -> 
A108: =RANK(B108,$B$14:$B$149,2) -> 1 | B108: =IF(E108=0,99999,C109*100+COUNTIF($C$13:C109,C109)) -> 99999 | D108: =IF(Z108=$AB$9,36.5,LEFT(Z108,2))*1 ->  | N108: から
A109: =A108+0.1 -> 1.1 | C109: =D108*10+D109 ->  | D109: =VLOOKUP(K108,コード!$D$2:$F$5,3) -> 1 | N109: まで | V109: 0 | X109: =IF(B108=99999,"",VLOOKUP(C109,総括表!$B$12:$C$64,2,0)) -> 
A110: =RANK(B110,$B$14:$B$149,2) -> 1 | B110: =IF(E110=0,99999,C111*100+COUNTIF($C$13:C111,C111)) -> 99999 | D110: =IF(Z110=$AB$9,36.5,LEFT(Z110,2))*1 ->  | N110: から
A111: =A110+0.1 -> 1.1 | C111: =D110*10+D111 ->  | D111: =VLOOKUP(K110,コード!$D$2:$F$5,3) -> 1 | N111: まで | V111: 0 | X111: =IF(B110=99999,"",VLOOKUP(C111,総括表!$B$12:$C$64,2,0)) -> 
A112: =RANK(B112,$B$14:$B$149,2) -> 1 | B112: =IF(E112=0,99999,C113*100+COUNTIF($C$13:C113,C113)) -> 99999 | D112: =IF(Z112=$AB$9,36.5,LEFT(Z112,2))*1 ->  | N112: から
A113: =A112+0.1 -> 1.1 | C113: =D112*10+D113 ->  | D113: =VLOOKUP(K112,コード!$D$2:$F$5,3) -> 1 | N113: まで | V113: 0 | X113: =IF(B112=99999,"",VLOOKUP(C113,総括表!$B$12:$C$64,2,0)) -> 
A114: =RANK(B114,$B$14:$B$149,2) -> 1 | B114: =IF(E114=0,99999,C115*100+COUNTIF($C$13:C115,C115)) -> 99999 | D114: =IF(Z114=$AB$9,36.5,LEFT(Z114,2))*1 ->  | N114: から
A115: =A114+0.1 -> 1.1 | C115: =D114*10+D115 ->  | D115: =VLOOKUP(K114,コード!$D$2:$F$5,3) -> 1 | N115: まで | V115: 0 | X115: =IF(B114=99999,"",VLOOKUP(C115,総括表!$B$12:$C$64,2,0)) -> 
A116: =RANK(B116,$B$14:$B$149,2) -> 1 | B116: =IF(E116=0,99999,C117*100+COUNTIF($C$13:C117,C117)) -> 99999 | D116: =IF(Z116=$AB$9,36.5,LEFT(Z116,2))*1 ->  | N116: から
A117: =A116+0.1 -> 1.1 | C117: =D116*10+D117 ->  | D117: =VLOOKUP(K116,コード!$D$2:$F$5,3) -> 1 | N117: まで | V117: 0 | X117: =IF(B116=99999,"",VLOOKUP(C117,総括表!$B$12:$C$64,2,0)) -> 
A118: =RANK(B118,$B$14:$B$149,2) -> 1 | B118: =IF(E118=0,99999,C119*100+COUNTIF($C$13:C119,C119)) -> 99999 | D118: =IF(Z118=$AB$9,36.5,LEFT(Z118,2))*1 ->  | N118: から
A119: =A118+0.1 -> 1.1 | C119: =D118*10+D119 ->  | D119: =VLOOKUP(K118,コード!$D$2:$F$5,3) -> 1 | N119: まで | V119: 0 | X119: =IF(B118=99999,"",VLOOKUP(C119,総括表!$B$12:$C$64,2,0)) -> 
A120: =RANK(B120,$B$14:$B$149,2) -> 1 | B120: =IF(E120=0,99999,C121*100+COUNTIF($C$13:C121,C121)) -> 99999 | D120: =IF(Z120=$AB$9,36.5,LEFT(Z120,2))*1 ->  | N120: から
A121: =A120+0.1 -> 1.1 | C121: =D120*10+D121 ->  | D121: =VLOOKUP(K120,コード!$D$2:$F$5,3) -> 1 | N121: まで | V121: 0 | X121: =IF(B120=99999,"",VLOOKUP(C121,総括表!$B$12:$C$64,2,0)) -> 
A122: =RANK(B122,$B$14:$B$149,2) -> 1 | B122: =IF(E122=0,99999,C123*100+COUNTIF($C$13:C123,C123)) -> 99999 | D122: =IF(Z122=$AB$9,36.5,LEFT(Z122,2))*1 ->  | N122: から
A123: =A122+0.1 -> 1.1 | C123: =D122*10+D123 ->  | D123: =VLOOKUP(K122,コード!$D$2:$F$5,3) -> 1 | N123: まで | V123: 0 | X123: =IF(B122=99999,"",VLOOKUP(C123,総括表!$B$12:$C$64,2,0)) -> 
A124: =RANK(B124,$B$14:$B$149,2) -> 1 | B124: =IF(E124=0,99999,C125*100+COUNTIF($C$13:C125,C125)) -> 99999 | D124: =IF(Z124=$AB$9,36.5,LEFT(Z124,2))*1 ->  | N124: から
A125: =A124+0.1 -> 1.1 | C125: =D124*10+D125 ->  | D125: =VLOOKUP(K124,コード!$D$2:$F$5,3) -> 1 | N125: まで | V125: 0 | X125: =IF(B124=99999,"",VLOOKUP(C125,総括表!$B$12:$C$64,2,0)) -> 
A126: =RANK(B126,$B$14:$B$149,2) -> 1 | B126: =IF(E126=0,99999,C127*100+COUNTIF($C$13:C127,C127)) -> 99999 | D126: =IF(Z126=$AB$9,36.5,LEFT(Z126,2))*1 ->  | N126: から
A127: =A126+0.1 -> 1.1 | C127: =D126*10+D127 ->  | D127: =VLOOKUP(K126,コード!$D$2:$F$5,3) -> 1 | N127: まで | V127: 0 | X127: =IF(B126=99999,"",VLOOKUP(C127,総括表!$B$12:$C$64,2,0)) -> 
A128: =RANK(B128,$B$14:$B$149,2) -> 1 | B128: =IF(E128=0,99999,C129*100+COUNTIF($C$13:C129,C129)) -> 99999 | D128: =IF(Z128=$AB$9,36.5,LEFT(Z128,2))*1 ->  | N128: から
A129: =A128+0.1 -> 1.1 | C129: =D128*10+D129 ->  | D129: =VLOOKUP(K128,コード!$D$2:$F$5,3) -> 1 | N129: まで | V129: 0 | X129: =IF(B128=99999,"",VLOOKUP(C129,総括表!$B$12:$C$64,2,0)) -> 
A130: =RANK(B130,$B$14:$B$149,2) -> 1 | B130: =IF(E130=0,99999,C131*100+COUNTIF($C$13:C131,C131)) -> 99999 | D130: =IF(Z130=$AB$9,36.5,LEFT(Z130,2))*1 ->  | N130: から
A131: =A130+0.1 -> 1.1 | C131: =D130*10+D131 ->  | D131: =VLOOKUP(K130,コード!$D$2:$F$5,3) -> 1 | N131: まで | V131: 0 | X131: =IF(B130=99999,"",VLOOKUP(C131,総括表!$B$12:$C$64,2,0)) -> 
A132: =RANK(B132,$B$14:$B$149,2) -> 1 | B132: =IF(E132=0,99999,C133*100+COUNTIF($C$13:C133,C133)) -> 99999 | D132: =IF(Z132=$AB$9,36.5,LEFT(Z132,2))*1 ->  | N132: から
A133: =A132+0.1 -> 1.1 | C133: =D132*10+D133 ->  | D133: =VLOOKUP(K132,コード!$D$2:$F$5,3) -> 1 | N133: まで | V133: 0 | X133: =IF(B132=99999,"",VLOOKUP(C133,総括表!$B$12:$C$64,2,0)) -> 
A134: =RANK(B134,$B$14:$B$149,2) -> 1 | B134: =IF(E134=0,99999,C135*100+COUNTIF($C$13:C135,C135)) -> 99999 | D134: =IF(Z134=$AB$9,36.5,LEFT(Z134,2))*1 ->  | N134: から
A135: =A134+0.1 -> 1.1 | C135: =D134*10+D135 ->  | D135: =VLOOKUP(K134,コード!$D$2:$F$5,3) -> 1 | N135: まで | V135: 0 | X135: =IF(B134=99999,"",VLOOKUP(C135,総括表!$B$12:$C$64,2,0)) -> 
A136: =RANK(B136,$B$14:$B$149,2) -> 1 | B136: =IF(E136=0,99999,C137*100+COUNTIF($C$13:C137,C137)) -> 99999 | D136: =IF(Z136=$AB$9,36.5,LEFT(Z136,2))*1 ->  | N136: から
A137: =A136+0.1 -> 1.1 | C137: =D136*10+D137 ->  | D137: =VLOOKUP(K136,コード!$D$2:$F$5,3) -> 1 | N137: まで | V137: 0 | X137: =IF(B136=99999,"",VLOOKUP(C137,総括表!$B$12:$C$64,2,0)) -> 
A138: =RANK(B138,$B$14:$B$149,2) -> 1 | B138: =IF(E138=0,99999,C139*100+COUNTIF($C$13:C139,C139)) -> 99999 | D138: =IF(Z138=$AB$9,36.5,LEFT(Z138,2))*1 ->  | N138: から
A139: =A138+0.1 -> 1.1 | C139: =D138*10+D139 ->  | D139: =VLOOKUP(K138,コード!$D$2:$F$5,3) -> 1 | N139: まで | V139: 0 | X139: =IF(B138=99999,"",VLOOKUP(C139,総括表!$B$12:$C$64,2,0)) -> 
A140: =RANK(B140,$B$14:$B$149,2) -> 1 | B140: =IF(E140=0,99999,C141*100+COUNTIF($C$13:C141,C141)) -> 99999 | D140: =IF(Z140=$AB$9,36.5,LEFT(Z140,2))*1 ->  | N140: から
A141: =A140+0.1 -> 1.1 | C141: =D140*10+D141 ->  | D141: =VLOOKUP(K140,コード!$D$2:$F$5,3) -> 1 | N141: まで | V141: 0 | X141: =IF(B140=99999,"",VLOOKUP(C141,総括表!$B$12:$C$64,2,0)) -> 
A142: =RANK(B142,$B$14:$B$149,2) -> 1 | B142: =IF(E142=0,99999,C143*100+COUNTIF($C$13:C143,C143)) -> 99999 | D142: =IF(Z142=$AB$9,36.5,LEFT(Z142,2))*1 ->  | N142: から
A143: =A142+0.1 -> 1.1 | C143: =D142*10+D143 ->  | D143: =VLOOKUP(K142,コード!$D$2:$F$5,3) -> 1 | N143: まで | V143: 0 | X143: =IF(B142=99999,"",VLOOKUP(C143,総括表!$B$12:$C$64,2,0)) -> 
A144: =RANK(B144,$B$14:$B$149,2) -> 1 | B144: =IF(E144=0,99999,C145*100+COUNTIF($C$13:C145,C145)) -> 99999 | D144: =IF(Z144=$AB$9,36.5,LEFT(Z144,2))*1 ->  | N144: から
A145: =A144+0.1 -> 1.1 | C145: =D144*10+D145 ->  | D145: =VLOOKUP(K144,コード!$D$2:$F$5,3) -> 1 | N145: まで | V145: 0 | X145: =IF(B144=99999,"",VLOOKUP(C145,総括表!$B$12:$C$64,2,0)) -> 
A146: =RANK(B146,$B$14:$B$149,2) -> 1 | B146: =IF(E146=0,99999,C147*100+COUNTIF($C$13:C147,C147)) -> 99999 | D146: =IF(Z146=$AB$9,36.5,LEFT(Z146,2))*1 ->  | N146: から
A147: =A146+0.1 -> 1.1 | C147: =D146*10+D147 ->  | D147: =VLOOKUP(K146,コード!$D$2:$F$5,3) -> 1 | N147: まで | V147: =O147+S147-U147 -> 0 | X147: =IF(B146=99999,"",VLOOKUP(C147,総括表!$B$12:$C$64,2,0)) -> 
A148: =RANK(B148,$B$14:$B$149,2) -> 1 | B148: =IF(E148=0,99999,C149*100+COUNTIF($C$13:C149,C149)) -> 99999 | D148: =IF(Z148=$AB$9,36.5,LEFT(Z148,2))*1 ->  | N148: から
A149: =A148+0.1 -> 1.1 | C149: =D148*10+D149 ->  | D149: =VLOOKUP(K148,コード!$D$2:$F$5,3) -> 1 | N149: まで | V149: =O149+S149-U149 -> 0 | X149: =IF(B148=99999,"",VLOOKUP(C149,総括表!$B$12:$C$64,2,0)) -> 
K150: 計 | O150: =SUM(O15:R139) -> 0 | S150: =SUM(S15:T139) -> 0 | U150: =SUM(U15:U149) -> 0 | V150: =SUM(V15:V149) -> 0 | W150: =SUM(W15:W27) ->  | Y150: =SUM(Y15:Y149) -> 0

Sheet 一括有期報告書
A1: =報告書入力!B2 -> 0
A2: =VLOOKUP(A1,コード!D16:E21,2) -> 1
B4: 様式第７号（第34条関係） （甲） | U4: 労 働 保 険
N5: 一括有期事業報告書 （建設の事業） | AM5: 控
B9: 労 働 保 険 番 号 | J9: 府 県 | L9: 所掌 | M9: 管 轄 | O9: 基 幹 番 号 | U9: 枝 番 号 | AL9: =VLOOKUP(A1,コード!D16:E21,2) -> 1 | AN9: 枚のうち | AP9: 1 | AR9: 枚目
J10: =報告書入力!F9 -> 1 | K10: =報告書入力!G9 -> 9 | L10: =報告書入力!H9 -> 1 | M10: =報告書入力!I9 -> 0 | N10: =報告書入力!J9 -> 2 | O10: =報告書入力!K9 -> 9 | P10: =報告書入力!L9 -> 3 | Q10: =報告書入力!M9 -> 3 | R10: =報告書入力!N9 -> 0 | S10: =報告書入力!O9 -> 7 | T10: =報告書入力!P9 -> 5 | U10: =報告書入力!Q9 -> 0 | V10: =報告書入力!R9 -> 0 | W10: =報告書入力!S9 -> 0
B13: 事 業 の 名 称 | J13: 事業場の所在地 | O13: 事 業 の 期 間 | V13: ① | Y13: 請負金額の内訳 | AL13: ② | AN13: ③ | AT13: 業種 番号
V14: 請負代金の額 | Z14: 請負代金に 加算する額 | AD14: 請負代金から 控除する額 | AH14: 請負代金 | AL14: 労 務 費 率 | AN14: 賃 金 総 額
A16: =IF((ROW()-14)/2<=$A$1,ROW()-14)/2 -> 0 | B16: =IF($A16=0,"",VLOOKUP($A16,報告書入力!$A$14:$Y$149,5,0)) ->  | J16: =IF($A16=0,"",VLOOKUP($A16,報告書入力!$A$14:$Y$149,6,0)) ->  | O16: =IF($A16=0,"",VLOOKUP($A16,報告書入力!$A$14:$Y$149,11,0)) ->  | P16: 年 | Q16: =O16 ->  | R16: 月 | S16: =Q16 ->  | T16: 日から | Y16: 円 | AC16: 円 | AG16: 円 | AS16: 円
O17: =IF($A16=0,"",VLOOKUP($A16+0.1,報告書入力!$A$14:$Y$149,11,0)) ->  | P17: 年 | Q17: =O17 ->  | R17: 月 | S17: =Q17 ->  | T17: 日まで | V17: =AH17 ->  | W17: =IF($A16=0,"",VLOOKUP($A16+0.1,報告書入力!$A$14:$Y$149,11,0)) ->  | X17: =IF($A16=0,"",VLOOKUP($A16+0.1,報告書入力!$A$14:$Y$149,11,0)) ->  | Y17: =IF($A16=0,"",VLOOKUP($A16+0.1,報告書入力!$A$14:$Y$149,11,0)) ->  | Z17: =IF($A16=0,"",VLOOKUP($A16+0.1,報告書入力!$A$14:$Y$149,19,0)) ->  | AA17: =IF($A16=0,"",VLOOKUP($A16+0.1,報告書入力!$A$14:$Y$149,11,0)) ->  | AB17: =IF($A16=0,"",VLOOKUP($A16+0.1,報告書入力!$A$14:$Y$149,11,0)) ->  | AC17: =IF($A16=0,"",VLOOKUP($A16+0.1,報告書入力!$A$14:$Y$149,11,0)) ->  | AD17: =IF($A16=0,"",VLOOKUP($A16+0.1,報告書入力!$A$14:$Y$149,21,0)) ->  | AE17: =IF($A16=0,"",VLOOKUP($A16+0.1,報告書入力!$A$14:$Y$149,11,0)) ->  | AF17: =IF($A16=0,"",VLOOKUP($A16+0.1,報告書入力!$A$14:$Y$149,11,0)) ->  | AG17: =IF($A16=0,"",VLOOKUP($A16+0.1,報告書入力!$A$14:$Y$149,11,0)) ->  | AH17: =IF($A16=0,"",VLOOKUP($A16+0.1,報告書入力!$A$14:$Y$149,23,0)) ->  | AL17: =IF($A16=0,"",VLOOKUP($A16+0.1,報告書入力!$A$14:$Y$149,24,0)) ->  | AN17: =IF($A16=0,"",VLOOKUP($A16+0.1,報告書入力!$A$14:$Y$149,25,0)) ->  | AT17: =IF($A16=0,"",TRUNC(VLOOKUP($A16,報告書入力!$A$14:$Y$149,4,0))) -> 
A18: =IF((ROW()-14)/2<=$A$1,ROW()-14)/2 -> 0 | B18: =IF($A18=0,"",VLOOKUP($A18,報告書入力!$A$14:$Y$149,5,0)) ->  | J18: =IF($A18=0,"",VLOOKUP($A18,報告書入力!$A$14:$Y$149,6,0)) ->  | O18: =IF($A18=0,"",VLOOKUP($A18,報告書入力!$A$14:$Y$149,11,0)) ->  | P18: 年 | Q18: =O18 ->  | R18: 月 | S18: =Q18 ->  | T18: 日から | Y18: 円 | AC18: 円 | AG18: 円
O19: =IF($A18=0,"",VLOOKUP($A18+0.1,報告書入力!$A$14:$Y$149,11,0)) ->  | P19: 年 | Q19: =O19 ->  | R19: 月 | S19: =Q19 ->  | T19: 日まで | V19: =AH19 ->  | W19: =IF($A18=0,"",VLOOKUP($A18+0.1,報告書入力!$A$14:$Y$149,11,0)) ->  | X19: =IF($A18=0,"",VLOOKUP($A18+0.1,報告書入力!$A$14:$Y$149,11,0)) ->  | Y19: =IF($A18=0,"",VLOOKUP($A18+0.1,報告書入力!$A$14:$Y$149,11,0)) ->  | Z19: =IF($A18=0,"",VLOOKUP($A18+0.1,報告書入力!$A$14:$Y$149,19,0)) ->  | AA19: =IF($A18=0,"",VLOOKUP($A18+0.1,報告書入力!$A$14:$Y$149,11,0)) ->  | AB19: =IF($A18=0,"",VLOOKUP($A18+0.1,報告書入力!$A$14:$Y$149,11,0)) ->  | AC19: =IF($A18=0,"",VLOOKUP($A18+0.1,報告書入力!$A$14:$Y$149,11,0)) ->  | AD19: =IF($A18=0,"",VLOOKUP($A18+0.1,報告書入力!$A$14:$Y$149,21,0)) ->  | AE19: =IF($A18=0,"",VLOOKUP($A18+0.1,報告書入力!$A$14:$Y$149,11,0)) ->  | AF19: =IF($A18=0,"",VLOOKUP($A18+0.1,報告書入力!$A$14:$Y$149,11,0)) ->  | AG19: =IF($A18=0,"",VLOOKUP($A18+0.1,報告書入力!$A$14:$Y$149,11,0)) ->  | AH19: =IF($A18=0,"",VLOOKUP($A18+0.1,報告書入力!$A$14:$Y$149,23,0)) ->  | AL19: =IF($A18=0,"",VLOOKUP($A18+0.1,報告書入力!$A$14:$Y$149,24,0)) ->  | AN19: =IF($A18=0,"",VLOOKUP($A18+0.1,報告書入力!$A$14:$Y$149,25,0)) ->  | AT19: =IF($A18=0,"",TRUNC(VLOOKUP($A18,報告書入力!$A$14:$Y$149,4,0))) -> 
A20: =IF((ROW()-14)/2<=$A$1,ROW()-14)/2 -> 0 | B20: =IF($A20=0,"",VLOOKUP($A20,報告書入力!$A$14:$Y$149,5,0)) ->  | J20: =IF($A20=0,"",VLOOKUP($A20,報告書入力!$A$14:$Y$149,6,0)) ->  | O20: =IF($A20=0,"",VLOOKUP($A20,報告書入力!$A$14:$Y$149,11,0)) ->  | P20: 年 | Q20: =O20 ->  | R20: 月 | S20: =Q20 ->  | T20: 日から | Y20: 円 | AC20: 円 | AG20: 円
O21: =IF($A20=0,"",VLOOKUP($A20+0.1,報告書入力!$A$14:$Y$149,11,0)) ->  | P21: 年 | R21: 月 | T21: 日まで | V21: =AH21 ->  | W21: =IF($A20=0,"",VLOOKUP($A20+0.1,報告書入力!$A$14:$Y$149,11,0)) ->  | X21: =IF($A20=0,"",VLOOKUP($A20+0.1,報告書入力!$A$14:$Y$149,11,0)) ->  | Y21: =IF($A20=0,"",VLOOKUP($A20+0.1,報告書入力!$A$14:$Y$149,11,0)) ->  | Z21: =IF($A20=0,"",VLOOKUP($A20+0.1,報告書入力!$A$14:$Y$149,19,0)) ->  | AA21: =IF($A20=0,"",VLOOKUP($A20+0.1,報告書入力!$A$14:$Y$149,11,0)) ->  | AB21: =IF($A20=0,"",VLOOKUP($A20+0.1,報告書入力!$A$14:$Y$149,11,0)) ->  | AC21: =IF($A20=0,"",VLOOKUP($A20+0.1,報告書入力!$A$14:$Y$149,11,0)) ->  | AD21: =IF($A20=0,"",VLOOKUP($A20+0.1,報告書入力!$A$14:$Y$149,21,0)) ->  | AE21: =IF($A20=0,"",VLOOKUP($A20+0.1,報告書入力!$A$14:$Y$149,11,0)) ->  | AF21: =IF($A20=0,"",VLOOKUP($A20+0.1,報告書入力!$A$14:$Y$149,11,0)) ->  | AG21: =IF($A20=0,"",VLOOKUP($A20+0.1,報告書入力!$A$14:$Y$149,11,0)) ->  | AH21: =IF($A20=0,"",VLOOKUP($A20+0.1,報告書入力!$A$14:$Y$149,23,0)) ->  | AI21: =IF($A20=0,"",VLOOKUP($A20+0.1,報告書入力!$A$14:$Y$149,11,0)) ->  | AJ21: =IF($A20=0,"",VLOOKUP($A20+0.1,報告書入力!$A$14:$Y$149,11,0)) ->  | AK21: =IF($A20=0,"",VLOOKUP($A20+0.1,報告書入力!$A$14:$Y$149,11,0)) ->  | AL21: =IF($A20=0,"",VLOOKUP($A20+0.1,報告書入力!$A$14:$Y$149,24,0)) ->  | AN21: =IF($A20=0,"",VLOOKUP($A20+0.1,報告書入力!$A$14:$Y$149,25,0)) ->  | AT21: =IF($A20=0,"",TRUNC(VLOOKUP($A20,報告書入力!$A$14:$Y$149,4,0))) -> 
A22: =IF((ROW()-14)/2<=$A$1,ROW()-14)/2 -> 0 | B22: =IF($A22=0,"",VLOOKUP($A22,報告書入力!$A$14:$Y$149,5,0)) ->  | J22: =IF($A22=0,"",VLOOKUP($A22,報告書入力!$A$14:$Y$149,6,0)) ->  | O22: =IF($A22=0,"",VLOOKUP($A22,報告書入力!$A$14:$Y$149,11,0)) ->  | P22: 年 | R22: 月 | T22: 日から | Y22: 円 | AC22: 円 | AG22: 円
O23: =IF($A22=0,"",VLOOKUP($A22+0.1,報告書入力!$A$14:$Y$149,11,0)) ->  | P23: 年 | R23: 月 | T23: 日まで | V23: =AH23 ->  | W23: =IF($A22=0,"",VLOOKUP($A22+0.1,報告書入力!$A$14:$Y$149,11,0)) ->  | X23: =IF($A22=0,"",VLOOKUP($A22+0.1,報告書入力!$A$14:$Y$149,11,0)) ->  | Y23: =IF($A22=0,"",VLOOKUP($A22+0.1,報告書入力!$A$14:$Y$149,11,0)) ->  | Z23: =IF($A22=0,"",VLOOKUP($A22+0.1,報告書入力!$A$14:$Y$149,19,0)) ->  | AA23: =IF($A22=0,"",VLOOKUP($A22+0.1,報告書入力!$A$14:$Y$149,11,0)) ->  | AB23: =IF($A22=0,"",VLOOKUP($A22+0.1,報告書入力!$A$14:$Y$149,11,0)) ->  | AC23: =IF($A22=0,"",VLOOKUP($A22+0.1,報告書入力!$A$14:$Y$149,11,0)) ->  | AD23: =IF($A22=0,"",VLOOKUP($A22+0.1,報告書入力!$A$14:$Y$149,21,0)) ->  | AE23: =IF($A22=0,"",VLOOKUP($A22+0.1,報告書入力!$A$14:$Y$149,11,0)) ->  | AF23: =IF($A22=0,"",VLOOKUP($A22+0.1,報告書入力!$A$14:$Y$149,11,0)) ->  | AG23: =IF($A22=0,"",VLOOKUP($A22+0.1,報告書入力!$A$14:$Y$149,11,0)) ->  | AH23: =IF($A22=0,"",VLOOKUP($A22+0.1,報告書入力!$A$14:$Y$149,23,0)) ->  | AI23: =IF($A22=0,"",VLOOKUP($A22+0.1,報告書入力!$A$14:$Y$149,11,0)) ->  | AJ23: =IF($A22=0,"",VLOOKUP($A22+0.1,報告書入力!$A$14:$Y$149,11,0)) ->  | AK23: =IF($A22=0,"",VLOOKUP($A22+0.1,報告書入力!$A$14:$Y$149,11,0)) ->  | AL23: =IF($A22=0,"",VLOOKUP($A22+0.1,報告書入力!$A$14:$Y$149,24,0)) ->  | AN23: =IF($A22=0,"",VLOOKUP($A22+0.1,報告書入力!$A$14:$Y$149,25,0)) ->  | AT23: =IF($A22=0,"",TRUNC(VLOOKUP($A22,報告書入力!$A$14:$Y$149,4,0))) -> 
A24: =IF((ROW()-14)/2<=$A$1,ROW()-14)/2 -> 0 | B24: =IF($A24=0,"",VLOOKUP($A24,報告書入力!$A$14:$Y$149,5,0)) ->  | J24: =IF($A24=0,"",VLOOKUP($A24,報告書入力!$A$14:$Y$149,6,0)) ->  | O24: =IF($A24=0,"",VLOOKUP($A24,報告書入力!$A$14:$Y$149,11,0)) ->  | P24: 年 | R24: 月 | T24: 日から | Y24: 円 | AC24: 円 | AG24: 円
O25: =IF($A24=0,"",VLOOKUP($A24+0.1,報告書入力!$A$14:$Y$149,11,0)) ->  | P25: 年 | R25: 月 | T25: 日まで | V25: =AH25 ->  | W25: =IF($A24=0,"",VLOOKUP($A24+0.1,報告書入力!$A$14:$Y$149,11,0)) ->  | X25: =IF($A24=0,"",VLOOKUP($A24+0.1,報告書入力!$A$14:$Y$149,11,0)) ->  | Y25: =IF($A24=0,"",VLOOKUP($A24+0.1,報告書入力!$A$14:$Y$149,11,0)) ->  | Z25: =IF($A24=0,"",VLOOKUP($A24+0.1,報告書入力!$A$14:$Y$149,19,0)) ->  | AA25: =IF($A24=0,"",VLOOKUP($A24+0.1,報告書入力!$A$14:$Y$149,11,0)) ->  | AB25: =IF($A24=0,"",VLOOKUP($A24+0.1,報告書入力!$A$14:$Y$149,11,0)) ->  | AC25: =IF($A24=0,"",VLOOKUP($A24+0.1,報告書入力!$A$14:$Y$149,11,0)) ->  | AD25: =IF($A24=0,"",VLOOKUP($A24+0.1,報告書入力!$A$14:$Y$149,21,0)) ->  | AE25: =IF($A24=0,"",VLOOKUP($A24+0.1,報告書入力!$A$14:$Y$149,11,0)) ->  | AF25: =IF($A24=0,"",VLOOKUP($A24+0.1,報告書入力!$A$14:$Y$149,11,0)) ->  | AG25: =IF($A24=0,"",VLOOKUP($A24+0.1,報告書入力!$A$14:$Y$149,11,0)) ->  | AH25: =IF($A24=0,"",VLOOKUP($A24+0.1,報告書入力!$A$14:$Y$149,23,0)) ->  | AI25: =IF($A24=0,"",VLOOKUP($A24+0.1,報告書入力!$A$14:$Y$149,11,0)) ->  | AJ25: =IF($A24=0,"",VLOOKUP($A24+0.1,報告書入力!$A$14:$Y$149,11,0)) ->  | AK25: =IF($A24=0,"",VLOOKUP($A24+0.1,報告書入力!$A$14:$Y$149,11,0)) ->  | AL25: =IF($A24=0,"",VLOOKUP($A24+0.1,報告書入力!$A$14:$Y$149,24,0)) ->  | AN25: =IF($A24=0,"",VLOOKUP($A24+0.1,報告書入力!$A$14:$Y$149,25,0)) ->  | AT25: =IF($A24=0,"",TRUNC(VLOOKUP($A24,報告書入力!$A$14:$Y$149,4,0))) -> 
B26: 事業の種類 | O26: 計
D28: 前年度中（保険関係が消滅した日まで）に廃止又は終了があったそれぞれの事業の明細を上記のとおり報告します。
AI29: 郵便番号（ | AJ29: =LEFT(報告書入力!V5,3) ->  | AM29: - | AO29: =RIGHT(報告書入力!V5,4) ->  | AS29: )
D30: =報告書入力!L6 -> 45383 | F30: 年 | G30: 4 | I30: 月 | L30: 日 | AI30: 電話番号（ | AJ30: =報告書入力!V9 -> 0 | AL30: - | AM30: =報告書入力!W9 -> 0 | AO30: - | AP30: =報告書入力!X9 -> 0 | AS30: )
AA31: 住 所 | AC31: =報告書入力!V6 -> 0
X32: 事 業 主 | AC32: =報告書入力!V7 -> 0 | AS32: 記名押印又は署名
D33: 山梨 | H33: 労働局労働保険特別会計歳入徴収官 殿 | AA33: 氏 名 | AC33: =報告書入力!V8 -> 0 | AS33: ㊞
AD34: （法人のときはその名称及び代表者の氏名）
D35: 〔注意〕 | AA35: 社会保険 労務士 記載欄 | AC35: 作 成 年 月 日 ・ 提 出 代 行 者 ・ 事務代理者の表示 | AJ35: 氏名 | AP35: 電話番号
D36: ① | E36: 報告書の記載に当たっては、平成19年３月31日までに事業（工事）を開始したものと、同年４月１日
E37: 以降に事業（工事）を開始したものとを別葉とすること。 | AO37: ㊞
D38: ② | E38: 社会保険労務士記載欄は、この報告書を社会保険労務士が作成した場合のみ記載すること。
B47: 様式第７号（第34条関係） （甲） 〔別紙〕
AN48: =AM5 -> 控
B52: 労 働 保 険 番 号 | J52: 府 県 | L52: 所掌 | M52: 管 轄 | O52: 基 幹 番 号 | U52: 枝 番 号 | AL52: =$AL$9 -> 1 | AN52: 枚のうち | AP52: 2 | AR52: 枚目
J53: =$J$10 -> 1 | K53: =$K$10 -> 9 | L53: =$L$10 -> 1 | M53: =$M$10 -> 0 | N53: =$N$10 -> 2 | O53: =$O$10 -> 9 | P53: =$P$10 -> 3 | Q53: =$Q$10 -> 3 | R53: =$R$10 -> 0 | S53: =$S$10 -> 7 | T53: =$T$10 -> 5 | U53: =$U$10 -> 0 | V53: =$V$10 -> 0 | W53: =$W$10 -> 0
B56: 事 業 の 名 称 | J56: 事業場の所在地 | O56: 事 業 の 期 間 | V56: ① | Y56: 請負金額の内訳 | AL56: ② | AN56: ③ | AT56: 業種 番号
V57: 請負代金の額 | Z57: 請負代金に 加算する額 | AD57: 請負代金から 控除する額 | AH57: 請負代金 | AL57: 労 務 比 率 | AN57: 賃 金 総 額
A59: =IF((ROW()-47)/2<=$A$1,ROW()-47)/2 -> 0 | B59: =IF($A59=0,"",VLOOKUP($A59,報告書入力!$A$14:$Y$149,5,0)) ->  | J59: =IF($A59=0,"",VLOOKUP($A59,報告書入力!$A$14:$Y$149,6,0)) ->  | O59: =IF($A59=0,"",VLOOKUP($A59,報告書入力!$A$14:$Y$149,11,0)) ->  | P59: 年 | Q59: =O59 ->  | R59: 月 | S59: =Q59 ->  | T59: 日から | Y59: 円 | AC59: 円 | AG59: 円 | AS59: 円
O60: =IF($A59=0,"",VLOOKUP($A59+0.1,報告書入力!$A$14:$Y$149,11,0)) ->  | P60: 年 | R60: 月 | T60: 日まで | V60: =AH60 ->  | W60: =IF($A59=0,"",VLOOKUP($A59+0.1,報告書入力!$A$14:$Y$149,11,0)) ->  | X60: =IF($A59=0,"",VLOOKUP($A59+0.1,報告書入力!$A$14:$Y$149,11,0)) ->  | Y60: =IF($A59=0,"",VLOOKUP($A59+0.1,報告書入力!$A$14:$Y$149,11,0)) ->  | Z60: =IF($A59=0,"",VLOOKUP($A59+0.1,報告書入力!$A$14:$Y$149,19,0)) ->  | AA60: =IF($A59=0,"",VLOOKUP($A59+0.1,報告書入力!$A$14:$Y$149,11,0)) ->  | AB60: =IF($A59=0,"",VLOOKUP($A59+0.1,報告書入力!$A$14:$Y$149,11,0)) ->  | AC60: =IF($A59=0,"",VLOOKUP($A59+0.1,報告書入力!$A$14:$Y$149,11,0)) ->  | AD60: =IF($A59=0,"",VLOOKUP($A59+0.1,報告書入力!$A$14:$Y$149,21,0)) ->  | AE60: =IF($A59=0,"",VLOOKUP($A59+0.1,報告書入力!$A$14:$Y$149,11,0)) ->  | AF60: =IF($A59=0,"",VLOOKUP($A59+0.1,報告書入力!$A$14:$Y$149,11,0)) ->  | AG60: =IF($A59=0,"",VLOOKUP($A59+0.1,報告書入力!$A$14:$Y$149,11,0)) ->  | AH60: =IF($A59=0,"",VLOOKUP($A59+0.1,報告書入力!$A$14:$Y$149,23,0)) ->  | AI60: =IF($A59=0,"",VLOOKUP($A59+0.1,報告書入力!$A$14:$Y$149,11,0)) ->  | AJ60: =IF($A59=0,"",VLOOKUP($A59+0.1,報告書入力!$A$14:$Y$149,11,0)) ->  | AK60: =IF($A59=0,"",VLOOKUP($A59+0.1,報告書入力!$A$14:$Y$149,11,0)) ->  | AL60: =IF($A59=0,"",VLOOKUP($A59+0.1,報告書入力!$A$14:$Y$149,24,0)) ->  | AN60: =IF($A59=0,"",VLOOKUP($A59+0.1,報告書入力!$A$14:$Y$149,25,0)) ->  | AT60: =IF($A59=0,"",TRUNC(VLOOKUP($A59,報告書入力!$A$14:$Y$149,4,0))) -> 
A61: =IF((ROW()-47)/2<=$A$1,ROW()-47)/2 -> 0 | B61: =IF($A61=0,"",VLOOKUP($A61,報告書入力!$A$14:$Y$149,5,0)) ->  | J61: =IF($A61=0,"",VLOOKUP($A61,報告書入力!$A$14:$Y$149,6,0)) ->  | O61: =IF($A61=0,"",VLOOKUP($A61,報告書入力!$A$14:$Y$149,11,0)) ->  | P61: 年 | R61: 月 | T61: 日から | Y61: 円 | AC61: 円 | AG61: 円
O62: =IF($A61=0,"",VLOOKUP($A61+0.1,報告書入力!$A$14:$Y$149,11,0)) ->  | P62: 年 | R62: 月 | T62: 日まで | V62: =AH62 ->  | W62: =IF($A61=0,"",VLOOKUP($A61+0.1,報告書入力!$A$14:$Y$149,11,0)) ->  | X62: =IF($A61=0,"",VLOOKUP($A61+0.1,報告書入力!$A$14:$Y$149,11,0)) ->  | Y62: =IF($A61=0,"",VLOOKUP($A61+0.1,報告書入力!$A$14:$Y$149,11,0)) ->  | Z62: =IF($A61=0,"",VLOOKUP($A61+0.1,報告書入力!$A$14:$Y$149,19,0)) ->  | AA62: =IF($A61=0,"",VLOOKUP($A61+0.1,報告書入力!$A$14:$Y$149,11,0)) ->  | AB62: =IF($A61=0,"",VLOOKUP($A61+0.1,報告書入力!$A$14:$Y$149,11,0)) ->  | AC62: =IF($A61=0,"",VLOOKUP($A61+0.1,報告書入力!$A$14:$Y$149,11,0)) ->  | AD62: =IF($A61=0,"",VLOOKUP($A61+0.1,報告書入力!$A$14:$Y$149,21,0)) ->  | AE62: =IF($A61=0,"",VLOOKUP($A61+0.1,報告書入力!$A$14:$Y$149,11,0)) ->  | AF62: =IF($A61=0,"",VLOOKUP($A61+0.1,報告書入力!$A$14:$Y$149,11,0)) ->  | AG62: =IF($A61=0,"",VLOOKUP($A61+0.1,報告書入力!$A$14:$Y$149,11,0)) ->  | AH62: =IF($A61=0,"",VLOOKUP($A61+0.1,報告書入力!$A$14:$Y$149,23,0)) ->  | AI62: =IF($A61=0,"",VLOOKUP($A61+0.1,報告書入力!$A$14:$Y$149,11,0)) ->  | AJ62: =IF($A61=0,"",VLOOKUP($A61+0.1,報告書入力!$A$14:$Y$149,11,0)) ->  | AK62: =IF($A61=0,"",VLOOKUP($A61+0.1,報告書入力!$A$14:$Y$149,11,0)) ->  | AL62: =IF($A61=0,"",VLOOKUP($A61+0.1,報告書入力!$A$14:$Y$149,24,0)) ->  | AN62: =IF($A61=0,"",VLOOKUP($A61+0.1,報告書入力!$A$14:$Y$149,25,0)) ->  | AT62: =IF($A61=0,"",TRUNC(VLOOKUP($A61,報告書入力!$A$14:$Y$149,4,0))) -> 
A63: =IF((ROW()-47)/2<=$A$1,ROW()-47)/2 -> 0 | B63: =IF($A63=0,"",VLOOKUP($A63,報告書入力!$A$14:$Y$149,5,0)) ->  | J63: =IF($A63=0,"",VLOOKUP($A63,報告書入力!$A$14:$Y$149,6,0)) ->  | O63: =IF($A63=0,"",VLOOKUP($A63,報告書入力!$A$14:$Y$149,11,0)) ->  | P63: 年 | R63: 月 | T63: 日から | Y63: 円 | AC63: 円 | AG63: 円
O64: =IF($A63=0,"",VLOOKUP($A63+0.1,報告書入力!$A$14:$Y$149,11,0)) ->  | P64: 年 | R64: 月 | T64: 日まで | V64: =AH64 ->  | W64: =IF($A63=0,"",VLOOKUP($A63+0.1,報告書入力!$A$14:$Y$149,11,0)) ->  | X64: =IF($A63=0,"",VLOOKUP($A63+0.1,報告書入力!$A$14:$Y$149,11,0)) ->  | Y64: =IF($A63=0,"",VLOOKUP($A63+0.1,報告書入力!$A$14:$Y$149,11,0)) ->  | Z64: =IF($A63=0,"",VLOOKUP($A63+0.1,報告書入力!$A$14:$Y$149,19,0)) ->  | AA64: =IF($A63=0,"",VLOOKUP($A63+0.1,報告書入力!$A$14:$Y$149,11,0)) ->  | AB64: =IF($A63=0,"",VLOOKUP($A63+0.1,報告書入力!$A$14:$Y$149,11,0)) ->  | AC64: =IF($A63=0,"",VLOOKUP($A63+0.1,報告書入力!$A$14:$Y$149,11,0)) ->  | AD64: =IF($A63=0,"",VLOOKUP($A63+0.1,報告書入力!$A$14:$Y$149,21,0)) ->  | AE64: =IF($A63=0,"",VLOOKUP($A63+0.1,報告書入力!$A$14:$Y$149,11,0)) ->  | AF64: =IF($A63=0,"",VLOOKUP($A63+0.1,報告書入力!$A$14:$Y$149,11,0)) ->  | AG64: =IF($A63=0,"",VLOOKUP($A63+0.1,報告書入力!$A$14:$Y$149,11,0)) ->  | AH64: =IF($A63=0,"",VLOOKUP($A63+0.1,報告書入力!$A$14:$Y$149,23,0)) ->  | AI64: =IF($A63=0,"",VLOOKUP($A63+0.1,報告書入力!$A$14:$Y$149,11,0)) ->  | AJ64: =IF($A63=0,"",VLOOKUP($A63+0.1,報告書入力!$A$14:$Y$149,11,0)) ->  | AK64: =IF($A63=0,"",VLOOKUP($A63+0.1,報告書入力!$A$14:$Y$149,11,0)) ->  | AL64: =IF($A63=0,"",VLOOKUP($A63+0.1,報告書入力!$A$14:$Y$149,24,0)) ->  | AN64: =IF($A63=0,"",VLOOKUP($A63+0.1,報告書入力!$A$14:$Y$149,25,0)) ->  | AT64: =IF($A63=0,"",TRUNC(VLOOKUP($A63,報告書入力!$A$14:$Y$149,4,0))) -> 
A65: =IF((ROW()-47)/2<=$A$1,ROW()-47)/2 -> 0 | B65: =IF($A65=0,"",VLOOKUP($A65,報告書入力!$A$14:$Y$149,5,0)) ->  | J65: =IF($A65=0,"",VLOOKUP($A65,報告書入力!$A$14:$Y$149,6,0)) ->  | O65: =IF($A65=0,"",VLOOKUP($A65,報告書入力!$A$14:$Y$149,11,0)) ->  | P65: 年 | R65: 月 | T65: 日から | Y65: 円 | AC65: 円 | AG65: 円
O66: =IF($A65=0,"",VLOOKUP($A65+0.1,報告書入力!$A$14:$Y$149,11,0)) ->  | P66: 年 | R66: 月 | T66: 日まで | V66: =AH66 ->  | W66: =IF($A65=0,"",VLOOKUP($A65+0.1,報告書入力!$A$14:$Y$149,11,0)) ->  | X66: =IF($A65=0,"",VLOOKUP($A65+0.1,報告書入力!$A$14:$Y$149,11,0)) ->  | Y66: =IF($A65=0,"",VLOOKUP($A65+0.1,報告書入力!$A$14:$Y$149,11,0)) ->  | Z66: =IF($A65=0,"",VLOOKUP($A65+0.1,報告書入力!$A$14:$Y$149,19,0)) ->  | AA66: =IF($A65=0,"",VLOOKUP($A65+0.1,報告書入力!$A$14:$Y$149,11,0)) ->  | AB66: =IF($A65=0,"",VLOOKUP($A65+0.1,報告書入力!$A$14:$Y$149,11,0)) ->  | AC66: =IF($A65=0,"",VLOOKUP($A65+0.1,報告書入力!$A$14:$Y$149,11,0)) ->  | AD66: =IF($A65=0,"",VLOOKUP($A65+0.1,報告書入力!$A$14:$Y$149,21,0)) ->  | AE66: =IF($A65=0,"",VLOOKUP($A65+0.1,報告書入力!$A$14:$Y$149,11,0)) ->  | AF66: =IF($A65=0,"",VLOOKUP($A65+0.1,報告書入力!$A$14:$Y$149,11,0)) ->  | AG66: =IF($A65=0,"",VLOOKUP($A65+0.1,報告書入力!$A$14:$Y$149,11,0)) ->  | AH66: =IF($A65=0,"",VLOOKUP($A65+0.1,報告書入力!$A$14:$Y$149,23,0)) ->  | AI66: =IF($A65=0,"",VLOOKUP($A65+0.1,報告書入力!$A$14:$Y$149,11,0)) ->  | AJ66: =IF($A65=0,"",VLOOKUP($A65+0.1,報告書入力!$A$14:$Y$149,11,0)) ->  | AK66: =IF($A65=0,"",VLOOKUP($A65+0.1,報告書入力!$A$14:$Y$149,11,0)) ->  | AL66: =IF($A65=0,"",VLOOKUP($A65+0.1,報告書入力!$A$14:$Y$149,24,0)) ->  | AN66: =IF($A65=0,"",VLOOKUP($A65+0.1,報告書入力!$A$14:$Y$149,25,0)) ->  | AT66: =IF($A65=0,"",TRUNC(VLOOKUP($A65,報告書入力!$A$14:$Y$149,4,0))) -> 
A67: =IF((ROW()-47)/2<=$A$1,ROW()-47)/2 -> 0 | B67: =IF($A67=0,"",VLOOKUP($A67,報告書入力!$A$14:$Y$149,5,0)) ->  | J67: =IF($A67=0,"",VLOOKUP($A67,報告書入力!$A$14:$Y$149,6,0)) ->  | O67: =IF($A67=0,"",VLOOKUP($A67,報告書入力!$A$14:$Y$149,11,0)) ->  | P67: 年 | R67: 月 | T67: 日から | Y67: 円 | AC67: 円 | AG67: 円
O68: =IF($A67=0,"",VLOOKUP($A67+0.1,報告書入力!$A$14:$Y$149,11,0)) ->  | P68: 年 | R68: 月 | T68: 日まで | V68: =AH68 ->  | W68: =IF($A67=0,"",VLOOKUP($A67+0.1,報告書入力!$A$14:$Y$149,11,0)) ->  | X68: =IF($A67=0,"",VLOOKUP($A67+0.1,報告書入力!$A$14:$Y$149,11,0)) ->  | Y68: =IF($A67=0,"",VLOOKUP($A67+0.1,報告書入力!$A$14:$Y$149,11,0)) ->  | Z68: =IF($A67=0,"",VLOOKUP($A67+0.1,報告書入力!$A$14:$Y$149,19,0)) ->  | AA68: =IF($A67=0,"",VLOOKUP($A67+0.1,報告書入力!$A$14:$Y$149,11,0)) ->  | AB68: =IF($A67=0,"",VLOOKUP($A67+0.1,報告書入力!$A$14:$Y$149,11,0)) ->  | AC68: =IF($A67=0,"",VLOOKUP($A67+0.1,報告書入力!$A$14:$Y$149,11,0)) ->  | AD68: =IF($A67=0,"",VLOOKUP($A67+0.1,報告書入力!$A$14:$Y$149,21,0)) ->  | AE68: =IF($A67=0,"",VLOOKUP($A67+0.1,報告書入力!$A$14:$Y$149,11,0)) ->  | AF68: =IF($A67=0,"",VLOOKUP($A67+0.1,報告書入力!$A$14:$Y$149,11,0)) ->  | AG68: =IF($A67=0,"",VLOOKUP($A67+0.1,報告書入力!$A$14:$Y$149,11,0)) ->  | AH68: =IF($A67=0,"",VLOOKUP($A67+0.1,報告書入力!$A$14:$Y$149,23,0)) ->  | AI68: =IF($A67=0,"",VLOOKUP($A67+0.1,報告書入力!$A$14:$Y$149,11,0)) ->  | AJ68: =IF($A67=0,"",VLOOKUP($A67+0.1,報告書入力!$A$14:$Y$149,11,0)) ->  | AK68: =IF($A67=0,"",VLOOKUP($A67+0.1,報告書入力!$A$14:$Y$149,11,0)) ->  | AL68: =IF($A67=0,"",VLOOKUP($A67+0.1,報告書入力!$A$14:$Y$149,24,0)) ->  | AN68: =IF($A67=0,"",VLOOKUP($A67+0.1,報告書入力!$A$14:$Y$149,25,0)) ->  | AT68: =IF($A67=0,"",TRUNC(VLOOKUP($A67,報告書入力!$A$14:$Y$149,4,0))) -> 
A69: =IF((ROW()-47)/2<=$A$1,ROW()-47)/2 -> 0 | B69: =IF($A69=0,"",VLOOKUP($A69,報告書入力!$A$14:$Y$149,5,0)) ->  | J69: =IF($A69=0,"",VLOOKUP($A69,報告書入力!$A$14:$Y$149,6,0)) ->  | O69: =IF($A69=0,"",VLOOKUP($A69,報告書入力!$A$14:$Y$149,11,0)) ->  | P69: 年 | R69: 月 | T69: 日から | Y69: 円 | AC69: 円 | AG69: 円
O70: =IF($A69=0,"",VLOOKUP($A69+0.1,報告書入力!$A$14:$Y$149,11,0)) ->  | P70: 年 | R70: 月 | T70: 日まで | V70: =AH70 ->  | W70: =IF($A69=0,"",VLOOKUP($A69+0.1,報告書入力!$A$14:$Y$149,11,0)) ->  | X70: =IF($A69=0,"",VLOOKUP($A69+0.1,報告書入力!$A$14:$Y$149,11,0)) ->  | Y70: =IF($A69=0,"",VLOOKUP($A69+0.1,報告書入力!$A$14:$Y$149,11,0)) ->  | Z70: =IF($A69=0,"",VLOOKUP($A69+0.1,報告書入力!$A$14:$Y$149,19,0)) ->  | AA70: =IF($A69=0,"",VLOOKUP($A69+0.1,報告書入力!$A$14:$Y$149,11,0)) ->  | AB70: =IF($A69=0,"",VLOOKUP($A69+0.1,報告書入力!$A$14:$Y$149,11,0)) ->  | AC70: =IF($A69=0,"",VLOOKUP($A69+0.1,報告書入力!$A$14:$Y$149,11,0)) ->  | AD70: =IF($A69=0,"",VLOOKUP($A69+0.1,報告書入力!$A$14:$Y$149,21,0)) ->  | AE70: =IF($A69=0,"",VLOOKUP($A69+0.1,報告書入力!$A$14:$Y$149,11,0)) ->  | AF70: =IF($A69=0,"",VLOOKUP($A69+0.1,報告書入力!$A$14:$Y$149,11,0)) ->  | AG70: =IF($A69=0,"",VLOOKUP($A69+0.1,報告書入力!$A$14:$Y$149,11,0)) ->  | AH70: =IF($A69=0,"",VLOOKUP($A69+0.1,報告書入力!$A$14:$Y$149,23,0)) ->  | AI70: =IF($A69=0,"",VLOOKUP($A69+0.1,報告書入力!$A$14:$Y$149,11,0)) ->  | AJ70: =IF($A69=0,"",VLOOKUP($A69+0.1,報告書入力!$A$14:$Y$149,11,0)) ->  | AK70: =IF($A69=0,"",VLOOKUP($A69+0.1,報告書入力!$A$14:$Y$149,11,0)) ->  | AL70: =IF($A69=0,"",VLOOKUP($A69+0.1,報告書入力!$A$14:$Y$149,24,0)) ->  | AN70: =IF($A69=0,"",VLOOKUP($A69+0.1,報告書入力!$A$14:$Y$149,25,0)) ->  | AT70: =IF($A69=0,"",TRUNC(VLOOKUP($A69,報告書入力!$A$14:$Y$149,4,0))) -> 
A71: =IF((ROW()-47)/2<=$A$1,ROW()-47)/2 -> 0 | B71: =IF($A71=0,"",VLOOKUP($A71,報告書入力!$A$14:$Y$149,5,0)) ->  | J71: =IF($A71=0,"",VLOOKUP($A71,報告書入力!$A$14:$Y$149,6,0)) ->  | O71: =IF($A71=0,"",VLOOKUP($A71,報告書入力!$A$14:$Y$149,11,0)) ->  | P71: 年 | Q71: =O71 ->  | R71: 月 | S71: =Q71 ->  | T71: 日から | Y71: 円 | AC71: 円 | AG71: 円
O72: =IF($A71=0,"",VLOOKUP($A71+0.1,報告書入力!$A$14:$Y$149,11,0)) ->  | P72: 年 | R72: 月 | T72: 日まで | V72: =AH72 ->  | W72: =IF($A71=0,"",VLOOKUP($A71+0.1,報告書入力!$A$14:$Y$149,11,0)) ->  | X72: =IF($A71=0,"",VLOOKUP($A71+0.1,報告書入力!$A$14:$Y$149,11,0)) ->  | Y72: =IF($A71=0,"",VLOOKUP($A71+0.1,報告書入力!$A$14:$Y$149,11,0)) ->  | Z72: =IF($A71=0,"",VLOOKUP($A71+0.1,報告書入力!$A$14:$Y$149,19,0)) ->  | AA72: =IF($A71=0,"",VLOOKUP($A71+0.1,報告書入力!$A$14:$Y$149,11,0)) ->  | AB72: =IF($A71=0,"",VLOOKUP($A71+0.1,報告書入力!$A$14:$Y$149,11,0)) ->  | AC72: =IF($A71=0,"",VLOOKUP($A71+0.1,報告書入力!$A$14:$Y$149,11,0)) ->  | AD72: =IF($A71=0,"",VLOOKUP($A71+0.1,報告書入力!$A$14:$Y$149,21,0)) ->  | AE72: =IF($A71=0,"",VLOOKUP($A71+0.1,報告書入力!$A$14:$Y$149,11,0)) ->  | AF72: =IF($A71=0,"",VLOOKUP($A71+0.1,報告書入力!$A$14:$Y$149,11,0)) ->  | AG72: =IF($A71=0,"",VLOOKUP($A71+0.1,報告書入力!$A$14:$Y$149,11,0)) ->  | AH72: =IF($A71=0,"",VLOOKUP($A71+0.1,報告書入力!$A$14:$Y$149,23,0)) ->  | AI72: =IF($A71=0,"",VLOOKUP($A71+0.1,報告書入力!$A$14:$Y$149,11,0)) ->  | AJ72: =IF($A71=0,"",VLOOKUP($A71+0.1,報告書入力!$A$14:$Y$149,11,0)) ->  | AK72: =IF($A71=0,"",VLOOKUP($A71+0.1,報告書入力!$A$14:$Y$149,11,0)) ->  | AL72: =IF($A71=0,"",VLOOKUP($A71+0.1,報告書入力!$A$14:$Y$149,24,0)) ->  | AN72: =IF($A71=0,"",VLOOKUP($A71+0.1,報告書入力!$A$14:$Y$149,25,0)) ->  | AT72: =IF($A71=0,"",TRUNC(VLOOKUP($A71,報告書入力!$A$14:$Y$149,4,0))) -> 
A73: =IF((ROW()-47)/2<=$A$1,ROW()-47)/2 -> 0 | B73: =IF($A73=0,"",VLOOKUP($A73,報告書入力!$A$14:$Y$149,5,0)) ->  | J73: =IF($A73=0,"",VLOOKUP($A73,報告書入力!$A$14:$Y$149,6,0)) ->  | O73: =IF($A73=0,"",VLOOKUP($A73,報告書入力!$A$14:$Y$149,11,0)) ->  | P73: 年 | R73: 月 | T73: 日から | Y73: 円 | AC73: 円 | AG73: 円
O74: =IF($A73=0,"",VLOOKUP($A73+0.1,報告書入力!$A$14:$Y$149,11,0)) ->  | P74: 年 | R74: 月 | T74: 日まで | V74: =AH74 ->  | W74: =IF($A73=0,"",VLOOKUP($A73+0.1,報告書入力!$A$14:$Y$149,11,0)) ->  | X74: =IF($A73=0,"",VLOOKUP($A73+0.1,報告書入力!$A$14:$Y$149,11,0)) ->  | Y74: =IF($A73=0,"",VLOOKUP($A73+0.1,報告書入力!$A$14:$Y$149,11,0)) ->  | Z74: =IF($A73=0,"",VLOOKUP($A73+0.1,報告書入力!$A$14:$Y$149,19,0)) ->  | AA74: =IF($A73=0,"",VLOOKUP($A73+0.1,報告書入力!$A$14:$Y$149,11,0)) ->  | AB74: =IF($A73=0,"",VLOOKUP($A73+0.1,報告書入力!$A$14:$Y$149,11,0)) ->  | AC74: =IF($A73=0,"",VLOOKUP($A73+0.1,報告書入力!$A$14:$Y$149,11,0)) ->  | AD74: =IF($A73=0,"",VLOOKUP($A73+0.1,報告書入力!$A$14:$Y$149,21,0)) ->  | AE74: =IF($A73=0,"",VLOOKUP($A73+0.1,報告書入力!$A$14:$Y$149,11,0)) ->  | AF74: =IF($A73=0,"",VLOOKUP($A73+0.1,報告書入力!$A$14:$Y$149,11,0)) ->  | AG74: =IF($A73=0,"",VLOOKUP($A73+0.1,報告書入力!$A$14:$Y$149,11,0)) ->  | AH74: =IF($A73=0,"",VLOOKUP($A73+0.1,報告書入力!$A$14:$Y$149,23,0)) ->  | AI74: =IF($A73=0,"",VLOOKUP($A73+0.1,報告書入力!$A$14:$Y$149,11,0)) ->  | AJ74: =IF($A73=0,"",VLOOKUP($A73+0.1,報告書入力!$A$14:$Y$149,11,0)) ->  | AK74: =IF($A73=0,"",VLOOKUP($A73+0.1,報告書入力!$A$14:$Y$149,11,0)) ->  | AL74: =IF($A73=0,"",VLOOKUP($A73+0.1,報告書入力!$A$14:$Y$149,24,0)) ->  | AN74: =IF($A73=0,"",VLOOKUP($A73+0.1,報告書入力!$A$14:$Y$149,25,0)) ->  | AT74: =IF($A73=0,"",TRUNC(VLOOKUP($A73,報告書入力!$A$14:$Y$149,4,0))) -> 
A75: =IF((ROW()-47)/2<=$A$1,ROW()-47)/2 -> 0 | B75: =IF($A75=0,"",VLOOKUP($A75,報告書入力!$A$14:$Y$149,5,0)) ->  | J75: =IF($A75=0,"",VLOOKUP($A75,報告書入力!$A$14:$Y$149,6,0)) ->  | O75: =IF($A75=0,"",VLOOKUP($A75,報告書入力!$A$14:$Y$149,11,0)) ->  | P75: 年 | R75: 月 | T75: 日から | Y75: 円 | AC75: 円 | AG75: 円
O76: =IF($A75=0,"",VLOOKUP($A75+0.1,報告書入力!$A$14:$Y$149,11,0)) ->  | P76: 年 | R76: 月 | T76: 日まで | V76: =AH76 ->  | W76: =IF($A75=0,"",VLOOKUP($A75+0.1,報告書入力!$A$14:$Y$149,11,0)) ->  | X76: =IF($A75=0,"",VLOOKUP($A75+0.1,報告書入力!$A$14:$Y$149,11,0)) ->  | Y76: =IF($A75=0,"",VLOOKUP($A75+0.1,報告書入力!$A$14:$Y$149,11,0)) ->  | Z76: =IF($A75=0,"",VLOOKUP($A75+0.1,報告書入力!$A$14:$Y$149,19,0)) ->  | AA76: =IF($A75=0,"",VLOOKUP($A75+0.1,報告書入力!$A$14:$Y$149,11,0)) ->  | AB76: =IF($A75=0,"",VLOOKUP($A75+0.1,報告書入力!$A$14:$Y$149,11,0)) ->  | AC76: =IF($A75=0,"",VLOOKUP($A75+0.1,報告書入力!$A$14:$Y$149,11,0)) ->  | AD76: =IF($A75=0,"",VLOOKUP($A75+0.1,報告書入力!$A$14:$Y$149,21,0)) ->  | AE76: =IF($A75=0,"",VLOOKUP($A75+0.1,報告書入力!$A$14:$Y$149,11,0)) ->  | AF76: =IF($A75=0,"",VLOOKUP($A75+0.1,報告書入力!$A$14:$Y$149,11,0)) ->  | AG76: =IF($A75=0,"",VLOOKUP($A75+0.1,報告書入力!$A$14:$Y$149,11,0)) ->  | AH76: =IF($A75=0,"",VLOOKUP($A75+0.1,報告書入力!$A$14:$Y$149,23,0)) ->  | AI76: =IF($A75=0,"",VLOOKUP($A75+0.1,報告書入力!$A$14:$Y$149,11,0)) ->  | AJ76: =IF($A75=0,"",VLOOKUP($A75+0.1,報告書入力!$A$14:$Y$149,11,0)) ->  | AK76: =IF($A75=0,"",VLOOKUP($A75+0.1,報告書入力!$A$14:$Y$149,11,0)) ->  | AL76: =IF($A75=0,"",VLOOKUP($A75+0.1,報告書入力!$A$14:$Y$149,24,0)) ->  | AN76: =IF($A75=0,"",VLOOKUP($A75+0.1,報告書入力!$A$14:$Y$149,25,0)) ->  | AT76: =IF($A75=0,"",TRUNC(VLOOKUP($A75,報告書入力!$A$14:$Y$149,4,0))) -> 
B77: 事業の種類 | O77: 計
B86: 様式第７号（第34条関係） （甲） 〔別紙〕
AN87: =AN48 -> 控
B91: 労 働 保 険 番 号 | J91: 府 県 | L91: 所掌 | M91: 管 轄 | O91: 基 幹 番 号 | U91: 枝 番 号 | AL91: =$AL$9 -> 1 | AN91: 枚のうち | AP91: 3 | AR91: 枚目
J92: =$J$10 -> 1 | K92: =$K$10 -> 9 | L92: =$L$10 -> 1 | M92: =$M$10 -> 0 | N92: =$N$10 -> 2 | O92: =$O$10 -> 9 | P92: =$P$10 -> 3 | Q92: =$Q$10 -> 3 | R92: =$R$10 -> 0 | S92: =$S$10 -> 7 | T92: =$T$10 -> 5 | U92: =$U$10 -> 0 | V92: =$V$10 -> 0 | W92: =$W$10 -> 0
B95: 事 業 の 名 称 | J95: 事業場の所在地 | O95: 事 業 の 期 間 | V95: ① | Y95: 請負金額の内訳 | AL95: ② | AN95: ③ | AT95: 業種 番号
V96: 請負代金の額 | Z96: 請負代金に 加算する額 | AD96: 請負代金から 控除する額 | AH96: 請負代金 | AL96: 労 務 比 率 | AN96: 賃 金 総 額
A98: =IF((ROW()-68)/2<=$A$1,ROW()-68)/2 -> 0 | B98: =IF($A98=0,"",VLOOKUP($A98,報告書入力!$A$14:$Y$149,5,0)) ->  | J98: =IF($A98=0,"",VLOOKUP($A98,報告書入力!$A$14:$Y$149,6,0)) ->  | O98: =IF($A98=0,"",VLOOKUP($A98,報告書入力!$A$14:$Y$149,11,0)) ->  | P98: 年 | Q98: =O98 ->  | R98: 月 | S98: =Q98 ->  | T98: 日から | Y98: 円 | AC98: 円 | AG98: 円 | AS98: 円
O99: =IF($A98=0,"",VLOOKUP($A98+0.1,報告書入力!$A$14:$Y$149,11,0)) ->  | P99: 年 | R99: 月 | T99: 日まで | V99: =AH99 ->  | W99: =IF($A98=0,"",VLOOKUP($A98+0.1,報告書入力!$A$14:$Y$149,11,0)) ->  | X99: =IF($A98=0,"",VLOOKUP($A98+0.1,報告書入力!$A$14:$Y$149,11,0)) ->  | Y99: =IF($A98=0,"",VLOOKUP($A98+0.1,報告書入力!$A$14:$Y$149,11,0)) ->  | Z99: =IF($A98=0,"",VLOOKUP($A98+0.1,報告書入力!$A$14:$Y$149,19,0)) ->  | AA99: =IF($A98=0,"",VLOOKUP($A98+0.1,報告書入力!$A$14:$Y$149,11,0)) ->  | AB99: =IF($A98=0,"",VLOOKUP($A98+0.1,報告書入力!$A$14:$Y$149,11,0)) ->  | AC99: =IF($A98=0,"",VLOOKUP($A98+0.1,報告書入力!$A$14:$Y$149,11,0)) ->  | AD99: =IF($A98=0,"",VLOOKUP($A98+0.1,報告書入力!$A$14:$Y$149,21,0)) ->  | AE99: =IF($A98=0,"",VLOOKUP($A98+0.1,報告書入力!$A$14:$Y$149,11,0)) ->  | AF99: =IF($A98=0,"",VLOOKUP($A98+0.1,報告書入力!$A$14:$Y$149,11,0)) ->  | AG99: =IF($A98=0,"",VLOOKUP($A98+0.1,報告書入力!$A$14:$Y$149,11,0)) ->  | AH99: =IF($A98=0,"",VLOOKUP($A98+0.1,報告書入力!$A$14:$Y$149,23,0)) ->  | AI99: =IF($A98=0,"",VLOOKUP($A98+0.1,報告書入力!$A$14:$Y$149,11,0)) ->  | AJ99: =IF($A98=0,"",VLOOKUP($A98+0.1,報告書入力!$A$14:$Y$149,11,0)) ->  | AK99: =IF($A98=0,"",VLOOKUP($A98+0.1,報告書入力!$A$14:$Y$149,11,0)) ->  | AL99: =IF($A98=0,"",VLOOKUP($A98+0.1,報告書入力!$A$14:$Y$149,24,0)) ->  | AN99: =IF($A98=0,"",VLOOKUP($A98+0.1,報告書入力!$A$14:$Y$149,25,0)) ->  | AT99: =IF($A98=0,"",TRUNC(VLOOKUP($A98,報告書入力!$A$14:$Y$149,4,0))) -> 
A100: =IF((ROW()-68)/2<=$A$1,ROW()-68)/2 -> 0 | B100: =IF($A100=0,"",VLOOKUP($A100,報告書入力!$A$14:$Y$149,5,0)) ->  | J100: =IF($A100=0,"",VLOOKUP($A100,報告書入力!$A$14:$Y$149,6,0)) ->  | O100: =IF($A100=0,"",VLOOKUP($A100,報告書入力!$A$14:$Y$149,11,0)) ->  | P100: 年 | R100: 月 | T100: 日から | Y100: 円 | AC100: 円 | AG100: 円
O101: =IF($A100=0,"",VLOOKUP($A100+0.1,報告書入力!$A$14:$Y$149,11,0)) ->  | P101: 年 | R101: 月 | T101: 日まで | V101: =AH101 ->  | W101: =IF($A100=0,"",VLOOKUP($A100+0.1,報告書入力!$A$14:$Y$149,11,0)) ->  | X101: =IF($A100=0,"",VLOOKUP($A100+0.1,報告書入力!$A$14:$Y$149,11,0)) ->  | Y101: =IF($A100=0,"",VLOOKUP($A100+0.1,報告書入力!$A$14:$Y$149,11,0)) ->  | Z101: =IF($A100=0,"",VLOOKUP($A100+0.1,報告書入力!$A$14:$Y$149,19,0)) ->  | AA101: =IF($A100=0,"",VLOOKUP($A100+0.1,報告書入力!$A$14:$Y$149,11,0)) ->  | AB101: =IF($A100=0,"",VLOOKUP($A100+0.1,報告書入力!$A$14:$Y$149,11,0)) ->  | AC101: =IF($A100=0,"",VLOOKUP($A100+0.1,報告書入力!$A$14:$Y$149,11,0)) ->  | AD101: =IF($A100=0,"",VLOOKUP($A100+0.1,報告書入力!$A$14:$Y$149,21,0)) ->  | AE101: =IF($A100=0,"",VLOOKUP($A100+0.1,報告書入力!$A$14:$Y$149,11,0)) ->  | AF101: =IF($A100=0,"",VLOOKUP($A100+0.1,報告書入力!$A$14:$Y$149,11,0)) ->  | AG101: =IF($A100=0,"",VLOOKUP($A100+0.1,報告書入力!$A$14:$Y$149,11,0)) ->  | AH101: =IF($A100=0,"",VLOOKUP($A100+0.1,報告書入力!$A$14:$Y$149,23,0)) ->  | AI101: =IF($A100=0,"",VLOOKUP($A100+0.1,報告書入力!$A$14:$Y$149,11,0)) ->  | AJ101: =IF($A100=0,"",VLOOKUP($A100+0.1,報告書入力!$A$14:$Y$149,11,0)) ->  | AK101: =IF($A100=0,"",VLOOKUP($A100+0.1,報告書入力!$A$14:$Y$149,11,0)) ->  | AL101: =IF($A100=0,"",VLOOKUP($A100+0.1,報告書入力!$A$14:$Y$149,24,0)) ->  | AN101: =IF($A100=0,"",VLOOKUP($A100+0.1,報告書入力!$A$14:$Y$149,25,0)) ->  | AT101: =IF($A100=0,"",TRUNC(VLOOKUP($A100,報告書入力!$A$14:$Y$149,4,0))) -> 
A102: =IF((ROW()-68)/2<=$A$1,ROW()-68)/2 -> 0 | B102: =IF($A102=0,"",VLOOKUP($A102,報告書入力!$A$14:$Y$149,5,0)) ->  | J102: =IF($A102=0,"",VLOOKUP($A102,報告書入力!$A$14:$Y$149,6,0)) ->  | O102: =IF($A102=0,"",VLOOKUP($A102,報告書入力!$A$14:$Y$149,11,0)) ->  | P102: 年 | R102: 月 | T102: 日から | Y102: 円 | AC102: 円 | AG102: 円
O103: =IF($A102=0,"",VLOOKUP($A102+0.1,報告書入力!$A$14:$Y$149,11,0)) ->  | P103: 年 | R103: 月 | T103: 日まで | V103: =AH103 ->  | W103: =IF($A102=0,"",VLOOKUP($A102+0.1,報告書入力!$A$14:$Y$149,11,0)) ->  | X103: =IF($A102=0,"",VLOOKUP($A102+0.1,報告書入力!$A$14:$Y$149,11,0)) ->  | Y103: =IF($A102=0,"",VLOOKUP($A102+0.1,報告書入力!$A$14:$Y$149,11,0)) ->  | Z103: =IF($A102=0,"",VLOOKUP($A102+0.1,報告書入力!$A$14:$Y$149,19,0)) ->  | AA103: =IF($A102=0,"",VLOOKUP($A102+0.1,報告書入力!$A$14:$Y$149,11,0)) ->  | AB103: =IF($A102=0,"",VLOOKUP($A102+0.1,報告書入力!$A$14:$Y$149,11,0)) ->  | AC103: =IF($A102=0,"",VLOOKUP($A102+0.1,報告書入力!$A$14:$Y$149,11,0)) ->  | AD103: =IF($A102=0,"",VLOOKUP($A102+0.1,報告書入力!$A$14:$Y$149,21,0)) ->  | AE103: =IF($A102=0,"",VLOOKUP($A102+0.1,報告書入力!$A$14:$Y$149,11,0)) ->  | AF103: =IF($A102=0,"",VLOOKUP($A102+0.1,報告書入力!$A$14:$Y$149,11,0)) ->  | AG103: =IF($A102=0,"",VLOOKUP($A102+0.1,報告書入力!$A$14:$Y$149,11,0)) ->  | AH103: =IF($A102=0,"",VLOOKUP($A102+0.1,報告書入力!$A$14:$Y$149,23,0)) ->  | AI103: =IF($A102=0,"",VLOOKUP($A102+0.1,報告書入力!$A$14:$Y$149,11,0)) ->  | AJ103: =IF($A102=0,"",VLOOKUP($A102+0.1,報告書入力!$A$14:$Y$149,11,0)) ->  | AK103: =IF($A102=0,"",VLOOKUP($A102+0.1,報告書入力!$A$14:$Y$149,11,0)) ->  | AL103: =IF($A102=0,"",VLOOKUP($A102+0.1,報告書入力!$A$14:$Y$149,24,0)) ->  | AN103: =IF($A102=0,"",VLOOKUP($A102+0.1,報告書入力!$A$14:$Y$149,25,0)) ->  | AT103: =IF($A102=0,"",TRUNC(VLOOKUP($A102,報告書入力!$A$14:$Y$149,4,0))) -> 
A104: =IF((ROW()-68)/2<=$A$1,ROW()-68)/2 -> 0 | B104: =IF($A104=0,"",VLOOKUP($A104,報告書入力!$A$14:$Y$149,5,0)) ->  | J104: =IF($A104=0,"",VLOOKUP($A104,報告書入力!$A$14:$Y$149,6,0)) ->  | O104: =IF($A104=0,"",VLOOKUP($A104,報告書入力!$A$14:$Y$149,11,0)) ->  | P104: 年 | R104: 月 | T104: 日から | Y104: 円 | AC104: 円 | AG104: 円
O105: =IF($A104=0,"",VLOOKUP($A104+0.1,報告書入力!$A$14:$Y$149,11,0)) ->  | P105: 年 | R105: 月 | T105: 日まで | V105: =AH105 ->  | W105: =IF($A104=0,"",VLOOKUP($A104+0.1,報告書入力!$A$14:$Y$149,11,0)) ->  | X105: =IF($A104=0,"",VLOOKUP($A104+0.1,報告書入力!$A$14:$Y$149,11,0)) ->  | Y105: =IF($A104=0,"",VLOOKUP($A104+0.1,報告書入力!$A$14:$Y$149,11,0)) ->  | Z105: =IF($A104=0,"",VLOOKUP($A104+0.1,報告書入力!$A$14:$Y$149,19,0)) ->  | AA105: =IF($A104=0,"",VLOOKUP($A104+0.1,報告書入力!$A$14:$Y$149,11,0)) ->  | AB105: =IF($A104=0,"",VLOOKUP($A104+0.1,報告書入力!$A$14:$Y$149,11,0)) ->  | AC105: =IF($A104=0,"",VLOOKUP($A104+0.1,報告書入力!$A$14:$Y$149,11,0)) ->  | AD105: =IF($A104=0,"",VLOOKUP($A104+0.1,報告書入力!$A$14:$Y$149,21,0)) ->  | AE105: =IF($A104=0,"",VLOOKUP($A104+0.1,報告書入力!$A$14:$Y$149,11,0)) ->  | AF105: =IF($A104=0,"",VLOOKUP($A104+0.1,報告書入力!$A$14:$Y$149,11,0)) ->  | AG105: =IF($A104=0,"",VLOOKUP($A104+0.1,報告書入力!$A$14:$Y$149,11,0)) ->  | AH105: =IF($A104=0,"",VLOOKUP($A104+0.1,報告書入力!$A$14:$Y$149,23,0)) ->  | AI105: =IF($A104=0,"",VLOOKUP($A104+0.1,報告書入力!$A$14:$Y$149,11,0)) ->  | AJ105: =IF($A104=0,"",VLOOKUP($A104+0.1,報告書入力!$A$14:$Y$149,11,0)) ->  | AK105: =IF($A104=0,"",VLOOKUP($A104+0.1,報告書入力!$A$14:$Y$149,11,0)) ->  | AL105: =IF($A104=0,"",VLOOKUP($A104+0.1,報告書入力!$A$14:$Y$149,24,0)) ->  | AN105: =IF($A104=0,"",VLOOKUP($A104+0.1,報告書入力!$A$14:$Y$149,25,0)) ->  | AT105: =IF($A104=0,"",TRUNC(VLOOKUP($A104,報告書入力!$A$14:$Y$149,4,0))) -> 
A106: =IF((ROW()-68)/2<=$A$1,ROW()-68)/2 -> 0 | B106: =IF($A106=0,"",VLOOKUP($A106,報告書入力!$A$14:$Y$149,5,0)) ->  | J106: =IF($A106=0,"",VLOOKUP($A106,報告書入力!$A$14:$Y$149,6,0)) ->  | O106: =IF($A106=0,"",VLOOKUP($A106,報告書入力!$A$14:$Y$149,11,0)) ->  | P106: 年 | R106: 月 | T106: 日から | Y106: 円 | AC106: 円 | AG106: 円
O107: =IF($A106=0,"",VLOOKUP($A106+0.1,報告書入力!$A$14:$Y$149,11,0)) ->  | P107: 年 | R107: 月 | T107: 日まで | V107: =AH107 ->  | W107: =IF($A106=0,"",VLOOKUP($A106+0.1,報告書入力!$A$14:$Y$149,11,0)) ->  | X107: =IF($A106=0,"",VLOOKUP($A106+0.1,報告書入力!$A$14:$Y$149,11,0)) ->  | Y107: =IF($A106=0,"",VLOOKUP($A106+0.1,報告書入力!$A$14:$Y$149,11,0)) ->  | Z107: =IF($A106=0,"",VLOOKUP($A106+0.1,報告書入力!$A$14:$Y$149,19,0)) ->  | AA107: =IF($A106=0,"",VLOOKUP($A106+0.1,報告書入力!$A$14:$Y$149,11,0)) ->  | AB107: =IF($A106=0,"",VLOOKUP($A106+0.1,報告書入力!$A$14:$Y$149,11,0)) ->  | AC107: =IF($A106=0,"",VLOOKUP($A106+0.1,報告書入力!$A$14:$Y$149,11,0)) ->  | AD107: =IF($A106=0,"",VLOOKUP($A106+0.1,報告書入力!$A$14:$Y$149,21,0)) ->  | AE107: =IF($A106=0,"",VLOOKUP($A106+0.1,報告書入力!$A$14:$Y$149,11,0)) ->  | AF107: =IF($A106=0,"",VLOOKUP($A106+0.1,報告書入力!$A$14:$Y$149,11,0)) ->  | AG107: =IF($A106=0,"",VLOOKUP($A106+0.1,報告書入力!$A$14:$Y$149,11,0)) ->  | AH107: =IF($A106=0,"",VLOOKUP($A106+0.1,報告書入力!$A$14:$Y$149,23,0)) ->  | AI107: =IF($A106=0,"",VLOOKUP($A106+0.1,報告書入力!$A$14:$Y$149,11,0)) ->  | AJ107: =IF($A106=0,"",VLOOKUP($A106+0.1,報告書入力!$A$14:$Y$149,11,0)) ->  | AK107: =IF($A106=0,"",VLOOKUP($A106+0.1,報告書入力!$A$14:$Y$149,11,0)) ->  | AL107: =IF($A106=0,"",VLOOKUP($A106+0.1,報告書入力!$A$14:$Y$149,24,0)) ->  | AN107: =IF($A106=0,"",VLOOKUP($A106+0.1,報告書入力!$A$14:$Y$149,25,0)) ->  | AT107: =IF($A106=0,"",TRUNC(VLOOKUP($A106,報告書入力!$A$14:$Y$149,4,0))) -> 
A108: =IF((ROW()-68)/2<=$A$1,ROW()-68)/2 -> 0 | B108: =IF($A108=0,"",VLOOKUP($A108,報告書入力!$A$14:$Y$149,5,0)) ->  | J108: =IF($A108=0,"",VLOOKUP($A108,報告書入力!$A$14:$Y$149,6,0)) ->  | O108: =IF($A108=0,"",VLOOKUP($A108,報告書入力!$A$14:$Y$149,11,0)) ->  | P108: 年 | R108: 月 | T108: 日から | Y108: 円 | AC108: 円 | AG108: 円
O109: =IF($A108=0,"",VLOOKUP($A108+0.1,報告書入力!$A$14:$Y$149,11,0)) ->  | P109: 年 | R109: 月 | T109: 日まで | V109: =AH109 ->  | W109: =IF($A108=0,"",VLOOKUP($A108+0.1,報告書入力!$A$14:$Y$149,11,0)) ->  | X109: =IF($A108=0,"",VLOOKUP($A108+0.1,報告書入力!$A$14:$Y$149,11,0)) ->  | Y109: =IF($A108=0,"",VLOOKUP($A108+0.1,報告書入力!$A$14:$Y$149,11,0)) ->  | Z109: =IF($A108=0,"",VLOOKUP($A108+0.1,報告書入力!$A$14:$Y$149,19,0)) ->  | AA109: =IF($A108=0,"",VLOOKUP($A108+0.1,報告書入力!$A$14:$Y$149,11,0)) ->  | AB109: =IF($A108=0,"",VLOOKUP($A108+0.1,報告書入力!$A$14:$Y$149,11,0)) ->  | AC109: =IF($A108=0,"",VLOOKUP($A108+0.1,報告書入力!$A$14:$Y$149,11,0)) ->  | AD109: =IF($A108=0,"",VLOOKUP($A108+0.1,報告書入力!$A$14:$Y$149,21,0)) ->  | AE109: =IF($A108=0,"",VLOOKUP($A108+0.1,報告書入力!$A$14:$Y$149,11,0)) ->  | AF109: =IF($A108=0,"",VLOOKUP($A108+0.1,報告書入力!$A$14:$Y$149,11,0)) ->  | AG109: =IF($A108=0,"",VLOOKUP($A108+0.1,報告書入力!$A$14:$Y$149,11,0)) ->  | AH109: =IF($A108=0,"",VLOOKUP($A108+0.1,報告書入力!$A$14:$Y$149,23,0)) ->  | AI109: =IF($A108=0,"",VLOOKUP($A108+0.1,報告書入力!$A$14:$Y$149,11,0)) ->  | AJ109: =IF($A108=0,"",VLOOKUP($A108+0.1,報告書入力!$A$14:$Y$149,11,0)) ->  | AK109: =IF($A108=0,"",VLOOKUP($A108+0.1,報告書入力!$A$14:$Y$149,11,0)) ->  | AL109: =IF($A108=0,"",VLOOKUP($A108+0.1,報告書入力!$A$14:$Y$149,24,0)) ->  | AN109: =IF($A108=0,"",VLOOKUP($A108+0.1,報告書入力!$A$14:$Y$149,25,0)) ->  | AT109: =IF($A108=0,"",TRUNC(VLOOKUP($A108,報告書入力!$A$14:$Y$149,4,0))) -> 
A110: =IF((ROW()-68)/2<=$A$1,ROW()-68)/2 -> 0 | B110: =IF($A110=0,"",VLOOKUP($A110,報告書入力!$A$14:$Y$149,5,0)) ->  | J110: =IF($A110=0,"",VLOOKUP($A110,報告書入力!$A$14:$Y$149,6,0)) ->  | O110: =IF($A110=0,"",VLOOKUP($A110,報告書入力!$A$14:$Y$149,11,0)) ->  | P110: 年 | Q110: =O110 ->  | R110: 月 | S110: =Q110 ->  | T110: 日から | Y110: 円 | AC110: 円 | AG110: 円
O111: =IF($A110=0,"",VLOOKUP($A110+0.1,報告書入力!$A$14:$Y$149,11,0)) ->  | P111: 年 | R111: 月 | T111: 日まで | V111: =AH111 ->  | W111: =IF($A110=0,"",VLOOKUP($A110+0.1,報告書入力!$A$14:$Y$149,11,0)) ->  | X111: =IF($A110=0,"",VLOOKUP($A110+0.1,報告書入力!$A$14:$Y$149,11,0)) ->  | Y111: =IF($A110=0,"",VLOOKUP($A110+0.1,報告書入力!$A$14:$Y$149,11,0)) ->  | Z111: =IF($A110=0,"",VLOOKUP($A110+0.1,報告書入力!$A$14:$Y$149,19,0)) ->  | AA111: =IF($A110=0,"",VLOOKUP($A110+0.1,報告書入力!$A$14:$Y$149,11,0)) ->  | AB111: =IF($A110=0,"",VLOOKUP($A110+0.1,報告書入力!$A$14:$Y$149,11,0)) ->  | AC111: =IF($A110=0,"",VLOOKUP($A110+0.1,報告書入力!$A$14:$Y$149,11,0)) ->  | AD111: =IF($A110=0,"",VLOOKUP($A110+0.1,報告書入力!$A$14:$Y$149,21,0)) ->  | AE111: =IF($A110=0,"",VLOOKUP($A110+0.1,報告書入力!$A$14:$Y$149,11,0)) ->  | AF111: =IF($A110=0,"",VLOOKUP($A110+0.1,報告書入力!$A$14:$Y$149,11,0)) ->  | AG111: =IF($A110=0,"",VLOOKUP($A110+0.1,報告書入力!$A$14:$Y$149,11,0)) ->  | AH111: =IF($A110=0,"",VLOOKUP($A110+0.1,報告書入力!$A$14:$Y$149,23,0)) ->  | AI111: =IF($A110=0,"",VLOOKUP($A110+0.1,報告書入力!$A$14:$Y$149,11,0)) ->  | AJ111: =IF($A110=0,"",VLOOKUP($A110+0.1,報告書入力!$A$14:$Y$149,11,0)) ->  | AK111: =IF($A110=0,"",VLOOKUP($A110+0.1,報告書入力!$A$14:$Y$149,11,0)) ->  | AL111: =IF($A110=0,"",VLOOKUP($A110+0.1,報告書入力!$A$14:$Y$149,24,0)) ->  | AN111: =IF($A110=0,"",VLOOKUP($A110+0.1,報告書入力!$A$14:$Y$149,25,0)) ->  | AT111: =IF($A110=0,"",TRUNC(VLOOKUP($A110,報告書入力!$A$14:$Y$149,4,0))) -> 
A112: =IF((ROW()-68)/2<=$A$1,ROW()-68)/2 -> 0 | B112: =IF($A112=0,"",VLOOKUP($A112,報告書入力!$A$14:$Y$149,5,0)) ->  | J112: =IF($A112=0,"",VLOOKUP($A112,報告書入力!$A$14:$Y$149,6,0)) ->  | O112: =IF($A112=0,"",VLOOKUP($A112,報告書入力!$A$14:$Y$149,11,0)) ->  | P112: 年 | R112: 月 | T112: 日から | Y112: 円 | AC112: 円 | AG112: 円
O113: =IF($A112=0,"",VLOOKUP($A112+0.1,報告書入力!$A$14:$Y$149,11,0)) ->  | P113: 年 | R113: 月 | T113: 日まで | V113: =AH113 ->  | W113: =IF($A112=0,"",VLOOKUP($A112+0.1,報告書入力!$A$14:$Y$149,11,0)) ->  | X113: =IF($A112=0,"",VLOOKUP($A112+0.1,報告書入力!$A$14:$Y$149,11,0)) ->  | Y113: =IF($A112=0,"",VLOOKUP($A112+0.1,報告書入力!$A$14:$Y$149,11,0)) ->  | Z113: =IF($A112=0,"",VLOOKUP($A112+0.1,報告書入力!$A$14:$Y$149,19,0)) ->  | AA113: =IF($A112=0,"",VLOOKUP($A112+0.1,報告書入力!$A$14:$Y$149,11,0)) ->  | AB113: =IF($A112=0,"",VLOOKUP($A112+0.1,報告書入力!$A$14:$Y$149,11,0)) ->  | AC113: =IF($A112=0,"",VLOOKUP($A112+0.1,報告書入力!$A$14:$Y$149,11,0)) ->  | AD113: =IF($A112=0,"",VLOOKUP($A112+0.1,報告書入力!$A$14:$Y$149,21,0)) ->  | AE113: =IF($A112=0,"",VLOOKUP($A112+0.1,報告書入力!$A$14:$Y$149,11,0)) ->  | AF113: =IF($A112=0,"",VLOOKUP($A112+0.1,報告書入力!$A$14:$Y$149,11,0)) ->  | AG113: =IF($A112=0,"",VLOOKUP($A112+0.1,報告書入力!$A$14:$Y$149,11,0)) ->  | AH113: =IF($A112=0,"",VLOOKUP($A112+0.1,報告書入力!$A$14:$Y$149,23,0)) ->  | AI113: =IF($A112=0,"",VLOOKUP($A112+0.1,報告書入力!$A$14:$Y$149,11,0)) ->  | AJ113: =IF($A112=0,"",VLOOKUP($A112+0.1,報告書入力!$A$14:$Y$149,11,0)) ->  | AK113: =IF($A112=0,"",VLOOKUP($A112+0.1,報告書入力!$A$14:$Y$149,11,0)) ->  | AL113: =IF($A112=0,"",VLOOKUP($A112+0.1,報告書入力!$A$14:$Y$149,24,0)) ->  | AN113: =IF($A112=0,"",VLOOKUP($A112+0.1,報告書入力!$A$14:$Y$149,25,0)) ->  | AT113: =IF($A112=0,"",TRUNC(VLOOKUP($A112,報告書入力!$A$14:$Y$149,4,0))) -> 
A114: =IF((ROW()-68)/2<=$A$1,ROW()-68)/2 -> 0 | B114: =IF($A114=0,"",VLOOKUP($A114,報告書入力!$A$14:$Y$149,5,0)) ->  | J114: =IF($A114=0,"",VLOOKUP($A114,報告書入力!$A$14:$Y$149,6,0)) ->  | O114: =IF($A114=0,"",VLOOKUP($A114,報告書入力!$A$14:$Y$149,11,0)) ->  | P114: 年 | R114: 月 | T114: 日から | Y114: 円 | AC114: 円 | AG114: 円
O115: =IF($A114=0,"",VLOOKUP($A114+0.1,報告書入力!$A$14:$Y$149,11,0)) ->  | P115: 年 | R115: 月 | T115: 日まで | V115: =AH115 ->  | W115: =IF($A114=0,"",VLOOKUP($A114+0.1,報告書入力!$A$14:$Y$149,11,0)) ->  | X115: =IF($A114=0,"",VLOOKUP($A114+0.1,報告書入力!$A$14:$Y$149,11,0)) ->  | Y115: =IF($A114=0,"",VLOOKUP($A114+0.1,報告書入力!$A$14:$Y$149,11,0)) ->  | Z115: =IF($A114=0,"",VLOOKUP($A114+0.1,報告書入力!$A$14:$Y$149,19,0)) ->  | AA115: =IF($A114=0,"",VLOOKUP($A114+0.1,報告書入力!$A$14:$Y$149,11,0)) ->  | AB115: =IF($A114=0,"",VLOOKUP($A114+0.1,報告書入力!$A$14:$Y$149,11,0)) ->  | AC115: =IF($A114=0,"",VLOOKUP($A114+0.1,報告書入力!$A$14:$Y$149,11,0)) ->  | AD115: =IF($A114=0,"",VLOOKUP($A114+0.1,報告書入力!$A$14:$Y$149,21,0)) ->  | AE115: =IF($A114=0,"",VLOOKUP($A114+0.1,報告書入力!$A$14:$Y$149,11,0)) ->  | AF115: =IF($A114=0,"",VLOOKUP($A114+0.1,報告書入力!$A$14:$Y$149,11,0)) ->  | AG115: =IF($A114=0,"",VLOOKUP($A114+0.1,報告書入力!$A$14:$Y$149,11,0)) ->  | AH115: =IF($A114=0,"",VLOOKUP($A114+0.1,報告書入力!$A$14:$Y$149,23,0)) ->  | AI115: =IF($A114=0,"",VLOOKUP($A114+0.1,報告書入力!$A$14:$Y$149,11,0)) ->  | AJ115: =IF($A114=0,"",VLOOKUP($A114+0.1,報告書入力!$A$14:$Y$149,11,0)) ->  | AK115: =IF($A114=0,"",VLOOKUP($A114+0.1,報告書入力!$A$14:$Y$149,11,0)) ->  | AL115: =IF($A114=0,"",VLOOKUP($A114+0.1,報告書入力!$A$14:$Y$149,24,0)) ->  | AN115: =IF($A114=0,"",VLOOKUP($A114+0.1,報告書入力!$A$14:$Y$149,25,0)) ->  | AT115: =IF($A114=0,"",TRUNC(VLOOKUP($A114,報告書入力!$A$14:$Y$149,4,0))) -> 
B116: 事業の種類 | O116: 計
B125: 様式第７号（第34条関係） （甲） 〔別紙〕
AN126: =AN87 -> 控
B130: 労 働 保 険 番 号 | J130: 府 県 | L130: 所掌 | M130: 管 轄 | O130: 基 幹 番 号 | U130: 枝 番 号 | AL130: =$AL$9 -> 1 | AN130: 枚のうち | AP130: 4 | AR130: 枚目
J131: =$J$10 -> 1 | K131: =$K$10 -> 9 | L131: =$L$10 -> 1 | M131: =$M$10 -> 0 | N131: =$N$10 -> 2 | O131: =$O$10 -> 9 | P131: =$P$10 -> 3 | Q131: =$Q$10 -> 3 | R131: =$R$10 -> 0 | S131: =$S$10 -> 7 | T131: =$T$10 -> 5 | U131: =$U$10 -> 0 | V131: =$V$10 -> 0 | W131: =$W$10 -> 0
B134: 事 業 の 名 称 | J134: 事業場の所在地 | O134: 事 業 の 期 間 | V134: ① | Y134: 請負金額の内訳 | AL134: ② | AN134: ③ | AT134: 業種 番号
V135: 請負代金の額 | Z135: 請負代金に 加算する額 | AD135: 請負代金から 控除する額 | AH135: 請負代金 | AL135: 労 務 比 率 | AN135: 賃 金 総 額
A137: =IF((ROW()-89)/2<=$A$1,ROW()-89)/2 -> 0 | B137: =IF($A137=0,"",VLOOKUP($A137,報告書入力!$A$14:$Y$149,5,0)) ->  | J137: =IF($A137=0,"",VLOOKUP($A137,報告書入力!$A$14:$Y$149,6,0)) ->  | O137: =IF($A137=0,"",VLOOKUP($A137,報告書入力!$A$14:$Y$149,11,0)) ->  | P137: 年 | Q137: =O137 ->  | R137: 月 | S137: =Q137 ->  | T137: 日から | Y137: 円 | AC137: 円 | AG137: 円 | AS137: 円
O138: =IF($A137=0,"",VLOOKUP($A137+0.1,報告書入力!$A$14:$Y$149,11,0)) ->  | P138: 年 | R138: 月 | T138: 日まで | V138: =AH138 ->  | W138: =IF($A137=0,"",VLOOKUP($A137+0.1,報告書入力!$A$14:$Y$149,11,0)) ->  | X138: =IF($A137=0,"",VLOOKUP($A137+0.1,報告書入力!$A$14:$Y$149,11,0)) ->  | Y138: =IF($A137=0,"",VLOOKUP($A137+0.1,報告書入力!$A$14:$Y$149,11,0)) ->  | Z138: =IF($A137=0,"",VLOOKUP($A137+0.1,報告書入力!$A$14:$Y$149,19,0)) ->  | AA138: =IF($A137=0,"",VLOOKUP($A137+0.1,報告書入力!$A$14:$Y$149,11,0)) ->  | AB138: =IF($A137=0,"",VLOOKUP($A137+0.1,報告書入力!$A$14:$Y$149,11,0)) ->  | AC138: =IF($A137=0,"",VLOOKUP($A137+0.1,報告書入力!$A$14:$Y$149,11,0)) ->  | AD138: =IF($A137=0,"",VLOOKUP($A137+0.1,報告書入力!$A$14:$Y$149,21,0)) ->  | AE138: =IF($A137=0,"",VLOOKUP($A137+0.1,報告書入力!$A$14:$Y$149,11,0)) ->  | AF138: =IF($A137=0,"",VLOOKUP($A137+0.1,報告書入力!$A$14:$Y$149,11,0)) ->  | AG138: =IF($A137=0,"",VLOOKUP($A137+0.1,報告書入力!$A$14:$Y$149,11,0)) ->  | AH138: =IF($A137=0,"",VLOOKUP($A137+0.1,報告書入力!$A$14:$Y$149,23,0)) ->  | AI138: =IF($A137=0,"",VLOOKUP($A137+0.1,報告書入力!$A$14:$Y$149,11,0)) ->  | AJ138: =IF($A137=0,"",VLOOKUP($A137+0.1,報告書入力!$A$14:$Y$149,11,0)) ->  | AK138: =IF($A137=0,"",VLOOKUP($A137+0.1,報告書入力!$A$14:$Y$149,11,0)) ->  | AL138: =IF($A137=0,"",VLOOKUP($A137+0.1,報告書入力!$A$14:$Y$149,24,0)) ->  | AN138: =IF($A137=0,"",VLOOKUP($A137+0.1,報告書入力!$A$14:$Y$149,25,0)) ->  | AT138: =IF($A137=0,"",TRUNC(VLOOKUP($A137,報告書入力!$A$14:$Y$149,4,0))) -> 
A139: =IF((ROW()-89)/2<=$A$1,ROW()-89)/2 -> 0 | B139: =IF($A139=0,"",VLOOKUP($A139,報告書入力!$A$14:$Y$149,5,0)) ->  | J139: =IF($A139=0,"",VLOOKUP($A139,報告書入力!$A$14:$Y$149,6,0)) ->  | O139: =IF($A139=0,"",VLOOKUP($A139,報告書入力!$A$14:$Y$149,11,0)) ->  | P139: 年 | R139: 月 | T139: 日から | Y139: 円 | AC139: 円 | AG139: 円
O140: =IF($A139=0,"",VLOOKUP($A139+0.1,報告書入力!$A$14:$Y$149,11,0)) ->  | P140: 年 | R140: 月 | T140: 日まで | V140: =AH140 ->  | W140: =IF($A139=0,"",VLOOKUP($A139+0.1,報告書入力!$A$14:$Y$149,11,0)) ->  | X140: =IF($A139=0,"",VLOOKUP($A139+0.1,報告書入力!$A$14:$Y$149,11,0)) ->  | Y140: =IF($A139=0,"",VLOOKUP($A139+0.1,報告書入力!$A$14:$Y$149,11,0)) ->  | Z140: =IF($A139=0,"",VLOOKUP($A139+0.1,報告書入力!$A$14:$Y$149,19,0)) ->  | AA140: =IF($A139=0,"",VLOOKUP($A139+0.1,報告書入力!$A$14:$Y$149,11,0)) ->  | AB140: =IF($A139=0,"",VLOOKUP($A139+0.1,報告書入力!$A$14:$Y$149,11,0)) ->  | AC140: =IF($A139=0,"",VLOOKUP($A139+0.1,報告書入力!$A$14:$Y$149,11,0)) ->  | AD140: =IF($A139=0,"",VLOOKUP($A139+0.1,報告書入力!$A$14:$Y$149,21,0)) ->  | AE140: =IF($A139=0,"",VLOOKUP($A139+0.1,報告書入力!$A$14:$Y$149,11,0)) ->  | AF140: =IF($A139=0,"",VLOOKUP($A139+0.1,報告書入力!$A$14:$Y$149,11,0)) ->  | AG140: =IF($A139=0,"",VLOOKUP($A139+0.1,報告書入力!$A$14:$Y$149,11,0)) ->  | AH140: =IF($A139=0,"",VLOOKUP($A139+0.1,報告書入力!$A$14:$Y$149,23,0)) ->  | AI140: =IF($A139=0,"",VLOOKUP($A139+0.1,報告書入力!$A$14:$Y$149,11,0)) ->  | AJ140: =IF($A139=0,"",VLOOKUP($A139+0.1,報告書入力!$A$14:$Y$149,11,0)) ->  | AK140: =IF($A139=0,"",VLOOKUP($A139+0.1,報告書入力!$A$14:$Y$149,11,0)) ->  | AL140: =IF($A139=0,"",VLOOKUP($A139+0.1,報告書入力!$A$14:$Y$149,24,0)) ->  | AN140: =IF($A139=0,"",VLOOKUP($A139+0.1,報告書入力!$A$14:$Y$149,25,0)) ->  | AT140: =IF($A139=0,"",TRUNC(VLOOKUP($A139,報告書入力!$A$14:$Y$149,4,0))) -> 
A141: =IF((ROW()-89)/2<=$A$1,ROW()-89)/2 -> 0 | B141: =IF($A141=0,"",VLOOKUP($A141,報告書入力!$A$14:$Y$149,5,0)) ->  | J141: =IF($A141=0,"",VLOOKUP($A141,報告書入力!$A$14:$Y$149,6,0)) ->  | O141: =IF($A141=0,"",VLOOKUP($A141,報告書入力!$A$14:$Y$149,11,0)) ->  | P141: 年 | R141: 月 | T141: 日から | Y141: 円 | AC141: 円 | AG141: 円
O142: =IF($A141=0,"",VLOOKUP($A141+0.1,報告書入力!$A$14:$Y$149,11,0)) ->  | P142: 年 | R142: 月 | T142: 日まで | V142: =AH142 ->  | W142: =IF($A141=0,"",VLOOKUP($A141+0.1,報告書入力!$A$14:$Y$149,11,0)) ->  | X142: =IF($A141=0,"",VLOOKUP($A141+0.1,報告書入力!$A$14:$Y$149,11,0)) ->  | Y142: =IF($A141=0,"",VLOOKUP($A141+0.1,報告書入力!$A$14:$Y$149,11,0)) ->  | Z142: =IF($A141=0,"",VLOOKUP($A141+0.1,報告書入力!$A$14:$Y$149,19,0)) ->  | AA142: =IF($A141=0,"",VLOOKUP($A141+0.1,報告書入力!$A$14:$Y$149,11,0)) ->  | AB142: =IF($A141=0,"",VLOOKUP($A141+0.1,報告書入力!$A$14:$Y$149,11,0)) ->  | AC142: =IF($A141=0,"",VLOOKUP($A141+0.1,報告書入力!$A$14:$Y$149,11,0)) ->  | AD142: =IF($A141=0,"",VLOOKUP($A141+0.1,報告書入力!$A$14:$Y$149,21,0)) ->  | AE142: =IF($A141=0,"",VLOOKUP($A141+0.1,報告書入力!$A$14:$Y$149,11,0)) ->  | AF142: =IF($A141=0,"",VLOOKUP($A141+0.1,報告書入力!$A$14:$Y$149,11,0)) ->  | AG142: =IF($A141=0,"",VLOOKUP($A141+0.1,報告書入力!$A$14:$Y$149,11,0)) ->  | AH142: =IF($A141=0,"",VLOOKUP($A141+0.1,報告書入力!$A$14:$Y$149,23,0)) ->  | AI142: =IF($A141=0,"",VLOOKUP($A141+0.1,報告書入力!$A$14:$Y$149,11,0)) ->  | AJ142: =IF($A141=0,"",VLOOKUP($A141+0.1,報告書入力!$A$14:$Y$149,11,0)) ->  | AK142: =IF($A141=0,"",VLOOKUP($A141+0.1,報告書入力!$A$14:$Y$149,11,0)) ->  | AL142: =IF($A141=0,"",VLOOKUP($A141+0.1,報告書入力!$A$14:$Y$149,24,0)) ->  | AN142: =IF($A141=0,"",VLOOKUP($A141+0.1,報告書入力!$A$14:$Y$149,25,0)) ->  | AT142: =IF($A141=0,"",TRUNC(VLOOKUP($A141,報告書入力!$A$14:$Y$149,4,0))) -> 
A143: =IF((ROW()-89)/2<=$A$1,ROW()-89)/2 -> 0 | B143: =IF($A143=0,"",VLOOKUP($A143,報告書入力!$A$14:$Y$149,5,0)) ->  | J143: =IF($A143=0,"",VLOOKUP($A143,報告書入力!$A$14:$Y$149,6,0)) ->  | O143: =IF($A143=0,"",VLOOKUP($A143,報告書入力!$A$14:$Y$149,11,0)) ->  | P143: 年 | R143: 月 | T143: 日から | Y143: 円 | AC143: 円 | AG143: 円
O144: =IF($A143=0,"",VLOOKUP($A143+0.1,報告書入力!$A$14:$Y$149,11,0)) ->  | P144: 年 | R144: 月 | T144: 日まで | V144: =AH144 ->  | W144: =IF($A143=0,"",VLOOKUP($A143+0.1,報告書入力!$A$14:$Y$149,11,0)) ->  | X144: =IF($A143=0,"",VLOOKUP($A143+0.1,報告書入力!$A$14:$Y$149,11,0)) ->  | Y144: =IF($A143=0,"",VLOOKUP($A143+0.1,報告書入力!$A$14:$Y$149,11,0)) ->  | Z144: =IF($A143=0,"",VLOOKUP($A143+0.1,報告書入力!$A$14:$Y$149,19,0)) ->  | AA144: =IF($A143=0,"",VLOOKUP($A143+0.1,報告書入力!$A$14:$Y$149,11,0)) ->  | AB144: =IF($A143=0,"",VLOOKUP($A143+0.1,報告書入力!$A$14:$Y$149,11,0)) ->  | AC144: =IF($A143=0,"",VLOOKUP($A143+0.1,報告書入力!$A$14:$Y$149,11,0)) ->  | AD144: =IF($A143=0,"",VLOOKUP($A143+0.1,報告書入力!$A$14:$Y$149,21,0)) ->  | AE144: =IF($A143=0,"",VLOOKUP($A143+0.1,報告書入力!$A$14:$Y$149,11,0)) ->  | AF144: =IF($A143=0,"",VLOOKUP($A143+0.1,報告書入力!$A$14:$Y$149,11,0)) ->  | AG144: =IF($A143=0,"",VLOOKUP($A143+0.1,報告書入力!$A$14:$Y$149,11,0)) ->  | AH144: =IF($A143=0,"",VLOOKUP($A143+0.1,報告書入力!$A$14:$Y$149,23,0)) ->  | AI144: =IF($A143=0,"",VLOOKUP($A143+0.1,報告書入力!$A$14:$Y$149,11,0)) ->  | AJ144: =IF($A143=0,"",VLOOKUP($A143+0.1,報告書入力!$A$14:$Y$149,11,0)) ->  | AK144: =IF($A143=0,"",VLOOKUP($A143+0.1,報告書入力!$A$14:$Y$149,11,0)) ->  | AL144: =IF($A143=0,"",VLOOKUP($A143+0.1,報告書入力!$A$14:$Y$149,24,0)) ->  | AN144: =IF($A143=0,"",VLOOKUP($A143+0.1,報告書入力!$A$14:$Y$149,25,0)) ->  | AT144: =IF($A143=0,"",TRUNC(VLOOKUP($A143,報告書入力!$A$14:$Y$149,4,0))) -> 
A145: =IF((ROW()-89)/2<=$A$1,ROW()-89)/2 -> 0 | B145: =IF($A145=0,"",VLOOKUP($A145,報告書入力!$A$14:$Y$149,5,0)) ->  | J145: =IF($A145=0,"",VLOOKUP($A145,報告書入力!$A$14:$Y$149,6,0)) ->  | O145: =IF($A145=0,"",VLOOKUP($A145,報告書入力!$A$14:$Y$149,11,0)) ->  | P145: 年 | R145: 月 | T145: 日から | Y145: 円 | AC145: 円 | AG145: 円
O146: =IF($A145=0,"",VLOOKUP($A145+0.1,報告書入力!$A$14:$Y$149,11,0)) ->  | P146: 年 | R146: 月 | T146: 日まで | V146: =AH146 ->  | W146: =IF($A145=0,"",VLOOKUP($A145+0.1,報告書入力!$A$14:$Y$149,11,0)) ->  | X146: =IF($A145=0,"",VLOOKUP($A145+0.1,報告書入力!$A$14:$Y$149,11,0)) ->  | Y146: =IF($A145=0,"",VLOOKUP($A145+0.1,報告書入力!$A$14:$Y$149,11,0)) ->  | Z146: =IF($A145=0,"",VLOOKUP($A145+0.1,報告書入力!$A$14:$Y$149,19,0)) ->  | AA146: =IF($A145=0,"",VLOOKUP($A145+0.1,報告書入力!$A$14:$Y$149,11,0)) ->  | AB146: =IF($A145=0,"",VLOOKUP($A145+0.1,報告書入力!$A$14:$Y$149,11,0)) ->  | AC146: =IF($A145=0,"",VLOOKUP($A145+0.1,報告書入力!$A$14:$Y$149,11,0)) ->  | AD146: =IF($A145=0,"",VLOOKUP($A145+0.1,報告書入力!$A$14:$Y$149,21,0)) ->  | AE146: =IF($A145=0,"",VLOOKUP($A145+0.1,報告書入力!$A$14:$Y$149,11,0)) ->  | AF146: =IF($A145=0,"",VLOOKUP($A145+0.1,報告書入力!$A$14:$Y$149,11,0)) ->  | AG146: =IF($A145=0,"",VLOOKUP($A145+0.1,報告書入力!$A$14:$Y$149,11,0)) ->  | AH146: =IF($A145=0,"",VLOOKUP($A145+0.1,報告書入力!$A$14:$Y$149,23,0)) ->  | AI146: =IF($A145=0,"",VLOOKUP($A145+0.1,報告書入力!$A$14:$Y$149,11,0)) ->  | AJ146: =IF($A145=0,"",VLOOKUP($A145+0.1,報告書入力!$A$14:$Y$149,11,0)) ->  | AK146: =IF($A145=0,"",VLOOKUP($A145+0.1,報告書入力!$A$14:$Y$149,11,0)) ->  | AL146: =IF($A145=0,"",VLOOKUP($A145+0.1,報告書入力!$A$14:$Y$149,24,0)) ->  | AN146: =IF($A145=0,"",VLOOKUP($A145+0.1,報告書入力!$A$14:$Y$149,25,0)) ->  | AT146: =IF($A145=0,"",TRUNC(VLOOKUP($A145,報告書入力!$A$14:$Y$149,4,0))) -> 
A147: =IF((ROW()-89)/2<=$A$1,ROW()-89)/2 -> 0 | B147: =IF($A147=0,"",VLOOKUP($A147,報告書入力!$A$14:$Y$149,5,0)) ->  | J147: =IF($A147=0,"",VLOOKUP($A147,報告書入力!$A$14:$Y$149,6,0)) ->  | O147: =IF($A147=0,"",VLOOKUP($A147,報告書入力!$A$14:$Y$149,11,0)) ->  | P147: 年 | R147: 月 | T147: 日から | Y147: 円 | AC147: 円 | AG147: 円
O148: =IF($A147=0,"",VLOOKUP($A147+0.1,報告書入力!$A$14:$Y$149,11,0)) ->  | P148: 年 | R148: 月 | T148: 日まで | V148: =AH148 ->  | W148: =IF($A147=0,"",VLOOKUP($A147+0.1,報告書入力!$A$14:$Y$149,11,0)) ->  | X148: =IF($A147=0,"",VLOOKUP($A147+0.1,報告書入力!$A$14:$Y$149,11,0)) ->  | Y148: =IF($A147=0,"",VLOOKUP($A147+0.1,報告書入力!$A$14:$Y$149,11,0)) ->  | Z148: =IF($A147=0,"",VLOOKUP($A147+0.1,報告書入力!$A$14:$Y$149,19,0)) ->  | AA148: =IF($A147=0,"",VLOOKUP($A147+0.1,報告書入力!$A$14:$Y$149,11,0)) ->  | AB148: =IF($A147=0,"",VLOOKUP($A147+0.1,報告書入力!$A$14:$Y$149,11,0)) ->  | AC148: =IF($A147=0,"",VLOOKUP($A147+0.1,報告書入力!$A$14:$Y$149,11,0)) ->  | AD148: =IF($A147=0,"",VLOOKUP($A147+0.1,報告書入力!$A$14:$Y$149,21,0)) ->  | AE148: =IF($A147=0,"",VLOOKUP($A147+0.1,報告書入力!$A$14:$Y$149,11,0)) ->  | AF148: =IF($A147=0,"",VLOOKUP($A147+0.1,報告書入力!$A$14:$Y$149,11,0)) ->  | AG148: =IF($A147=0,"",VLOOKUP($A147+0.1,報告書入力!$A$14:$Y$149,11,0)) ->  | AH148: =IF($A147=0,"",VLOOKUP($A147+0.1,報告書入力!$A$14:$Y$149,23,0)) ->  | AI148: =IF($A147=0,"",VLOOKUP($A147+0.1,報告書入力!$A$14:$Y$149,11,0)) ->  | AJ148: =IF($A147=0,"",VLOOKUP($A147+0.1,報告書入力!$A$14:$Y$149,11,0)) ->  | AK148: =IF($A147=0,"",VLOOKUP($A147+0.1,報告書入力!$A$14:$Y$149,11,0)) ->  | AL148: =IF($A147=0,"",VLOOKUP($A147+0.1,報告書入力!$A$14:$Y$149,24,0)) ->  | AN148: =IF($A147=0,"",VLOOKUP($A147+0.1,報告書入力!$A$14:$Y$149,25,0)) ->  | AT148: =IF($A147=0,"",TRUNC(VLOOKUP($A147,報告書入力!$A$14:$Y$149,4,0))) -> 
A149: =IF((ROW()-89)/2<=$A$1,ROW()-89)/2 -> 0 | B149: =IF($A149=0,"",VLOOKUP($A149,報告書入力!$A$14:$Y$149,5,0)) ->  | J149: =IF($A149=0,"",VLOOKUP($A149,報告書入力!$A$14:$Y$149,6,0)) ->  | O149: =IF($A149=0,"",VLOOKUP($A149,報告書入力!$A$14:$Y$149,11,0)) ->  | P149: 年 | R149: 月 | T149: 日から | Y149: 円 | AC149: 円 | AG149: 円
O150: =IF($A149=0,"",VLOOKUP($A149+0.1,報告書入力!$A$14:$Y$149,11,0)) ->  | P150: 年 | R150: 月 | T150: 日まで | V150: =AH150 ->  | W150: =IF($A149=0,"",VLOOKUP($A149+0.1,報告書入力!$A$14:$Y$149,11,0)) ->  | X150: =IF($A149=0,"",VLOOKUP($A149+0.1,報告書入力!$A$14:$Y$149,11,0)) ->  | Y150: =IF($A149=0,"",VLOOKUP($A149+0.1,報告書入力!$A$14:$Y$149,11,0)) ->  | Z150: =IF($A149=0,"",VLOOKUP($A149+0.1,報告書入力!$A$14:$Y$149,19,0)) ->  | AA150: =IF($A149=0,"",VLOOKUP($A149+0.1,報告書入力!$A$14:$Y$149,11,0)) ->  | AB150: =IF($A149=0,"",VLOOKUP($A149+0.1,報告書入力!$A$14:$Y$149,11,0)) ->  | AC150: =IF($A149=0,"",VLOOKUP($A149+0.1,報告書入力!$A$14:$Y$149,11,0)) ->  | AD150: =IF($A149=0,"",VLOOKUP($A149+0.1,報告書入力!$A$14:$Y$149,21,0)) ->  | AE150: =IF($A149=0,"",VLOOKUP($A149+0.1,報告書入力!$A$14:$Y$149,11,0)) ->  | AF150: =IF($A149=0,"",VLOOKUP($A149+0.1,報告書入力!$A$14:$Y$149,11,0)) ->  | AG150: =IF($A149=0,"",VLOOKUP($A149+0.1,報告書入力!$A$14:$Y$149,11,0)) ->  | AH150: =IF($A149=0,"",VLOOKUP($A149+0.1,報告書入力!$A$14:$Y$149,23,0)) ->  | AI150: =IF($A149=0,"",VLOOKUP($A149+0.1,報告書入力!$A$14:$Y$149,11,0)) ->  | AJ150: =IF($A149=0,"",VLOOKUP($A149+0.1,報告書入力!$A$14:$Y$149,11,0)) ->  | AK150: =IF($A149=0,"",VLOOKUP($A149+0.1,報告書入力!$A$14:$Y$149,11,0)) ->  | AL150: =IF($A149=0,"",VLOOKUP($A149+0.1,報告書入力!$A$14:$Y$149,24,0)) ->  | AN150: =IF($A149=0,"",VLOOKUP($A149+0.1,報告書入力!$A$14:$Y$149,25,0)) ->  | AT150: =IF($A149=0,"",TRUNC(VLOOKUP($A149,報告書入力!$A$14:$Y$149,4,0))) -> 
A151: =IF((ROW()-89)/2<=$A$1,ROW()-89)/2 -> 0 | B151: =IF($A151=0,"",VLOOKUP($A151,報告書入力!$A$14:$Y$149,5,0)) ->  | J151: =IF($A151=0,"",VLOOKUP($A151,報告書入力!$A$14:$Y$149,6,0)) ->  | O151: =IF($A151=0,"",VLOOKUP($A151,報告書入力!$A$14:$Y$149,11,0)) ->  | P151: 年 | R151: 月 | T151: 日から | Y151: 円 | AC151: 円 | AG151: 円
O152: =IF($A151=0,"",VLOOKUP($A151+0.1,報告書入力!$A$14:$Y$149,11,0)) ->  | P152: 年 | R152: 月 | T152: 日まで | V152: =AH152 ->  | W152: =IF($A151=0,"",VLOOKUP($A151+0.1,報告書入力!$A$14:$Y$149,11,0)) ->  | X152: =IF($A151=0,"",VLOOKUP($A151+0.1,報告書入力!$A$14:$Y$149,11,0)) ->  | Y152: =IF($A151=0,"",VLOOKUP($A151+0.1,報告書入力!$A$14:$Y$149,11,0)) ->  | Z152: =IF($A151=0,"",VLOOKUP($A151+0.1,報告書入力!$A$14:$Y$149,19,0)) ->  | AA152: =IF($A151=0,"",VLOOKUP($A151+0.1,報告書入力!$A$14:$Y$149,11,0)) ->  | AB152: =IF($A151=0,"",VLOOKUP($A151+0.1,報告書入力!$A$14:$Y$149,11,0)) ->  | AC152: =IF($A151=0,"",VLOOKUP($A151+0.1,報告書入力!$A$14:$Y$149,11,0)) ->  | AD152: =IF($A151=0,"",VLOOKUP($A151+0.1,報告書入力!$A$14:$Y$149,21,0)) ->  | AE152: =IF($A151=0,"",VLOOKUP($A151+0.1,報告書入力!$A$14:$Y$149,11,0)) ->  | AF152: =IF($A151=0,"",VLOOKUP($A151+0.1,報告書入力!$A$14:$Y$149,11,0)) ->  | AG152: =IF($A151=0,"",VLOOKUP($A151+0.1,報告書入力!$A$14:$Y$149,11,0)) ->  | AH152: =IF($A151=0,"",VLOOKUP($A151+0.1,報告書入力!$A$14:$Y$149,23,0)) ->  | AI152: =IF($A151=0,"",VLOOKUP($A151+0.1,報告書入力!$A$14:$Y$149,11,0)) ->  | AJ152: =IF($A151=0,"",VLOOKUP($A151+0.1,報告書入力!$A$14:$Y$149,11,0)) ->  | AK152: =IF($A151=0,"",VLOOKUP($A151+0.1,報告書入力!$A$14:$Y$149,11,0)) ->  | AL152: =IF($A151=0,"",VLOOKUP($A151+0.1,報告書入力!$A$14:$Y$149,24,0)) ->  | AN152: =IF($A151=0,"",VLOOKUP($A151+0.1,報告書入力!$A$14:$Y$149,25,0)) ->  | AT152: =IF($A151=0,"",TRUNC(VLOOKUP($A151,報告書入力!$A$14:$Y$149,4,0))) -> 
A153: =IF((ROW()-89)/2<=$A$1,ROW()-89)/2 -> 0 | B153: =IF($A153=0,"",VLOOKUP($A153,報告書入力!$A$14:$Y$149,5,0)) ->  | J153: =IF($A153=0,"",VLOOKUP($A153,報告書入力!$A$14:$Y$149,6,0)) ->  | O153: =IF($A153=0,"",VLOOKUP($A153,報告書入力!$A$14:$Y$149,11,0)) ->  | P153: 年 | R153: 月 | T153: 日から | Y153: 円 | AC153: 円 | AG153: 円
O154: =IF($A153=0,"",VLOOKUP($A153+0.1,報告書入力!$A$14:$Y$149,11,0)) ->  | P154: 年 | R154: 月 | T154: 日まで | V154: =AH154 ->  | W154: =IF($A153=0,"",VLOOKUP($A153+0.1,報告書入力!$A$14:$Y$149,11,0)) ->  | X154: =IF($A153=0,"",VLOOKUP($A153+0.1,報告書入力!$A$14:$Y$149,11,0)) ->  | Y154: =IF($A153=0,"",VLOOKUP($A153+0.1,報告書入力!$A$14:$Y$149,11,0)) ->  | Z154: =IF($A153=0,"",VLOOKUP($A153+0.1,報告書入力!$A$14:$Y$149,19,0)) ->  | AA154: =IF($A153=0,"",VLOOKUP($A153+0.1,報告書入力!$A$14:$Y$149,11,0)) ->  | AB154: =IF($A153=0,"",VLOOKUP($A153+0.1,報告書入力!$A$14:$Y$149,11,0)) ->  | AC154: =IF($A153=0,"",VLOOKUP($A153+0.1,報告書入力!$A$14:$Y$149,11,0)) ->  | AD154: =IF($A153=0,"",VLOOKUP($A153+0.1,報告書入力!$A$14:$Y$149,21,0)) ->  | AE154: =IF($A153=0,"",VLOOKUP($A153+0.1,報告書入力!$A$14:$Y$149,11,0)) ->  | AF154: =IF($A153=0,"",VLOOKUP($A153+0.1,報告書入力!$A$14:$Y$149,11,0)) ->  | AG154: =IF($A153=0,"",VLOOKUP($A153+0.1,報告書入力!$A$14:$Y$149,11,0)) ->  | AH154: =IF($A153=0,"",VLOOKUP($A153+0.1,報告書入力!$A$14:$Y$149,23,0)) ->  | AI154: =IF($A153=0,"",VLOOKUP($A153+0.1,報告書入力!$A$14:$Y$149,11,0)) ->  | AJ154: =IF($A153=0,"",VLOOKUP($A153+0.1,報告書入力!$A$14:$Y$149,11,0)) ->  | AK154: =IF($A153=0,"",VLOOKUP($A153+0.1,報告書入力!$A$14:$Y$149,11,0)) ->  | AL154: =IF($A153=0,"",VLOOKUP($A153+0.1,報告書入力!$A$14:$Y$149,24,0)) ->  | AN154: =IF($A153=0,"",VLOOKUP($A153+0.1,報告書入力!$A$14:$Y$149,25,0)) ->  | AT154: =IF($A153=0,"",TRUNC(VLOOKUP($A153,報告書入力!$A$14:$Y$149,4,0))) -> 
B155: 事業の種類 | O155: 計

Sheet 総括表
E1: 別添様式
Q2: 労働保険等 | AU2: この３部は確定保険料申告書の際に記載し、 正 、 副を提出する。
F3: 令和 | I3: =報告書入力!G2 -> 5 | L3: 年度一括有期事業総括表 （建設の事業） | BG3: 控
E6: 労 働 保 険 番 号 | P6: 府 県 | T6: 所掌 | V6: 管 轄 | Z6: 基 幹 番 号 | AL6: 枝 番 号 | AU6: 一括有期事業報告書 | BD6: =一括有期報告書!AL9 -> 1 | BF6: 枚添付
P7: =報告書入力!F9 -> 1 | R7: =報告書入力!G9 -> 9 | T7: =報告書入力!H9 -> 1 | V7: =報告書入力!I9 -> 0 | X7: =報告書入力!J9 -> 2 | Z7: =報告書入力!K9 -> 9 | AB7: =報告書入力!L9 -> 3 | AD7: =報告書入力!M9 -> 3 | AF7: =報告書入力!N9 -> 0 | AH7: =報告書入力!O9 -> 7 | AJ7: =報告書入力!P9 -> 5 | AL7: =報告書入力!Q9 -> 0 | AN7: =報告書入力!R9 -> 0 | AP7: =報告書入力!S9 -> 0
C9: 労務 | D9: 保険 | E9: 業種番号 | G9: 事 業 の 種 類 | P9: 事業開始時期 | W9: 請 負 金 額 | AG9: 労務費率 | AI9: 賃 金 総 額 | AS9: 保険料率 | AY9: 保 険 料 額
C10: 費率 | D10: 料率 | AS10: 基準料率 | AV10: ﾒﾘｯﾄ料率
E11: 31 | G11: 水力発電施設、ずい道等新設事業 | P11: =" "&TEXT(コード!D3-1,"ggge年m月d日")&" 以前のもの" -> 平成27年3月31日 以前のもの | AF11: 円 | AG11: 18 | AJ11: =IF(W12=0,"",TRUNC(SUMIF(報告書入力!$C$14:$C$149,B12,報告書入力!$Y$14:$Y$149)/1000,0)) ->  | AQ11: 千円 | AS11: 1000分の | AV11: 1000分の | AY11: =IF(AJ11="","",TRUNC(AJ11*D12)) ->  | BH11: 円
B12: =E11*10+1 -> 311 | C12: =AG11 -> 18 | D12: 89 | W12: =SUMIF(報告書入力!$C$15:$C$149,B12,報告書入力!$W$15:$W$149) -> 0 | AS12: =D12 -> 89 | BL12: 注
P13: =" "&TEXT(コード!D4-1,"ggge年m月d日")&" 以前のもの" -> 平成30年3月31日 以前のもの | AG13: 19 | AJ13: =IF(W14=0,"",TRUNC(SUMIF(報告書入力!$C$14:$C$149,B14,報告書入力!$Y$14:$Y$149)/1000,0)) ->  | AS13: =D14 -> 79 | AY13: =IF(AJ13="","",TRUNC(AJ13*D14)) -> 
B14: =E11*10+2 -> 312 | C14: =AG13 -> 19 | D14: 79 | W14: =SUMIF(報告書入力!$C$15:$C$149,B14,報告書入力!$W$15:$W$149) -> 0 | BI14: 4 | BJ14: 3 | BK14: 2 | BL14: 1
P15: =" "&TEXT(コード!D4,"ggge年m月d日")&" 以降のもの" -> 平成30年4月1日 以降のもの | AJ15: =IF(W16=0,"",TRUNC(SUMIF(報告書入力!$C$14:$C$149,B16,報告書入力!$Y$14:$Y$149)/1000,0)) ->  | AY15: =IF(AJ15="","",TRUNC(AJ15*D16)) -> 
B16: =E11*10+3 -> 313 | C16: =AG15 -> 0 | D16: 62 | W16: =SUMIF(報告書入力!$C$15:$C$149,B16,報告書入力!$W$15:$W$149) -> 0 | BI16: 一般拠出金は事業（工事）開始時期が平成19年４月１日以降のすべての事業（工事）を徴収対象とする。 | BJ16: 一般拠出金とは、石綿による健康被害の救済に関する法律第35条第１項に基づき労災保険適用事業主から徴収する拠出金を指す。 | BK16: 前年度にメリット制が適用された事業については、メリット料率を記入のうえ確定保険料を計算すること。 | BL16: 事業報告書（様式第７号（甲））に記入した事業（工事）を、事業の種類ごとに合算し、本表により確定保険料を計算すること。
E17: 32 | G17: 道路新設事業 | P17: =P11 -> 平成27年3月31日 以前のもの | AG17: 20 | AJ17: =IF(W18=0,"",TRUNC(SUMIF(報告書入力!$C$14:$C$149,B18,報告書入力!$Y$14:$Y$149)/1000,0)) ->  | AS17: =D18 -> 16 | AY17: =IF(AJ17="","",TRUNC(AJ17*D18)) -> 
B18: =E17*10+1 -> 321 | C18: =AG17 -> 20 | D18: 16 | W18: =SUMIF(報告書入力!$C$15:$C$149,B18,報告書入力!$W$15:$W$149) -> 0
P19: =P13 -> 平成30年3月31日 以前のもの | AG19: 20 | AJ19: =IF(W20=0,"",TRUNC(SUMIF(報告書入力!$C$14:$C$149,B20,報告書入力!$Y$14:$Y$149)/1000,0)) ->  | AS19: =D20 -> 11 | AY19: =IF(AJ19="","",TRUNC(AJ19*D20)) -> 
B20: =E17*10+2 -> 322 | C20: =AG19 -> 20 | D20: 11 | W20: =SUMIF(報告書入力!$C$15:$C$149,B20,報告書入力!$W$15:$W$149) -> 0
P21: =P15 -> 平成30年4月1日 以降のもの | AG21: 19 | AJ21: =IF(W22=0,"",TRUNC(SUMIF(報告書入力!$C$14:$C$149,B22,報告書入力!$Y$14:$Y$149)/1000,0)) ->  | AS21: =D22 -> 11 | AY21: =IF(AJ21="","",TRUNC(AJ21*D22)) -> 
B22: =E17*10+3 -> 323 | C22: =AG21 -> 19 | D22: 11 | W22: =SUMIF(報告書入力!$C$15:$C$149,B22,報告書入力!$W$15:$W$149) -> 0
E23: 33 | G23: 舗装工事業 | P23: =P17 -> 平成27年3月31日 以前のもの | AG23: 18 | AJ23: =IF(W24=0,"",TRUNC(SUMIF(報告書入力!$C$14:$C$149,B24,報告書入力!$Y$14:$Y$149)/1000,0)) ->  | AS23: =D24 -> 10 | AY23: =IF(AJ23="","",TRUNC(AJ23*D24)) -> 
B24: =E23*10+1 -> 331 | C24: =AG23 -> 18 | D24: 10 | W24: =SUMIF(報告書入力!$C$15:$C$149,B24,報告書入力!$W$15:$W$149) -> 0
P25: =P19 -> 平成30年3月31日 以前のもの | AG25: 18 | AJ25: =IF(W26=0,"",TRUNC(SUMIF(報告書入力!$C$14:$C$149,B26,報告書入力!$Y$14:$Y$149)/1000,0)) ->  | AS25: =D26 -> 9 | AY25: =IF(AJ25="","",TRUNC(AJ25*D26)) -> 
B26: =E23*10+2 -> 332 | C26: =AG25 -> 18 | D26: 9 | W26: =SUMIF(報告書入力!$C$15:$C$149,B26,報告書入力!$W$15:$W$149) -> 0
P27: =P21 -> 平成30年4月1日 以降のもの | AG27: 17 | AJ27: =IF(W28=0,"",TRUNC(SUMIF(報告書入力!$C$14:$C$149,B28,報告書入力!$Y$14:$Y$149)/1000,0)) ->  | AS27: =D28 -> 9 | AY27: =IF(AJ27="","",TRUNC(AJ27*D28)) -> 
B28: =E23*10+3 -> 333 | C28: =AG27 -> 17 | D28: 9 | W28: =SUMIF(報告書入力!$C$15:$C$149,B28,報告書入力!$W$15:$W$149) -> 0
E29: 34 | G29: 鉄道又は軌道新設事業 | P29: =P23 -> 平成27年3月31日 以前のもの | AG29: 23 | AJ29: =IF(W30=0,"",TRUNC(SUMIF(報告書入力!$C$14:$C$149,B30,報告書入力!$Y$14:$Y$149)/1000,0)) ->  | AS29: =D30 -> 17 | AY29: =IF(AJ29="","",TRUNC(AJ29*D30)) -> 
B30: =E29*10+1 -> 341 | C30: =AG29 -> 23 | D30: 17 | W30: =SUMIF(報告書入力!$C$15:$C$149,B30,報告書入力!$W$15:$W$149) -> 0
P31: =P25 -> 平成30年3月31日 以前のもの | AG31: 25 | AJ31: =IF(W32=0,"",TRUNC(SUMIF(報告書入力!$C$14:$C$149,B32,報告書入力!$Y$14:$Y$149)/1000,0)) ->  | AS31: =D32 -> 9.5 | AY31: =IF(AJ31="","",TRUNC(AJ31*D32)) -> 
B32: =E29*10+2 -> 342 | C32: =AG31 -> 25 | D32: 9.5 | W32: =SUMIF(報告書入力!$C$15:$C$149,B32,報告書入力!$W$15:$W$149) -> 0
P33: =P27 -> 平成30年4月1日 以降のもの | AG33: 24 | AJ33: =IF(W34=0,"",TRUNC(SUMIF(報告書入力!$C$14:$C$149,B34,報告書入力!$Y$14:$Y$149)/1000,0)) ->  | AS33: =D34 -> 9 | AY33: =IF(AJ33="","",TRUNC(AJ33*D34)) -> 
B34: =E29*10+3 -> 343 | C34: =AG33 -> 24 | D34: 9 | W34: =SUMIF(報告書入力!$C$15:$C$149,B34,報告書入力!$W$15:$W$149) -> 0
E35: 35 | G35: 建築事業 | P35: =P29 -> 平成27年3月31日 以前のもの | AG35: 21 | AJ35: =IF(W36=0,"",TRUNC(SUMIF(報告書入力!$C$14:$C$149,B36,報告書入力!$Y$14:$Y$149)/1000,0)) ->  | AS35: =D36 -> 13 | AY35: =IF(AJ35="","",TRUNC(AJ35*D36)) -> 
B36: =E35*10+1 -> 351 | C36: =AG35 -> 21 | D36: 13 | W36: =SUMIF(報告書入力!$C$15:$C$149,B36,報告書入力!$W$15:$W$149) -> 0
P37: =P31 -> 平成30年3月31日 以前のもの | AG37: 23 | AJ37: =IF(W38=0,"",TRUNC(SUMIF(報告書入力!$C$14:$C$149,B38,報告書入力!$Y$14:$Y$149)/1000,0)) ->  | AS37: =D38 -> 11 | AY37: =IF(AJ37="","",TRUNC(AJ37*D38)) -> 
B38: =E35*10+2 -> 352 | C38: =AG37 -> 23 | D38: 11 | W38: =SUMIF(報告書入力!$C$15:$C$149,B38,報告書入力!$W$15:$W$149) -> 0
P39: =P33 -> 平成30年4月1日 以降のもの | AG39: 23 | AJ39: =IF(W40=0,"",TRUNC(SUMIF(報告書入力!$C$14:$C$149,B40,報告書入力!$Y$14:$Y$149)/1000,0)) ->  | AS39: =D40 -> 9.5 | AY39: =IF(AJ39="","",TRUNC(AJ39*D40)) -> 
B40: =E35*10+3 -> 353 | C40: =AG39 -> 23 | D40: 9.5 | W40: =SUMIF(報告書入力!$C$15:$C$149,B40,報告書入力!$W$15:$W$149) -> 0
E41: 38 | G41: 既設建築物設備工事業 | P41: =P35 -> 平成27年3月31日 以前のもの | AG41: 22 | AJ41: =IF(W42=0,"",TRUNC(SUMIF(報告書入力!$C$14:$C$149,B42,報告書入力!$Y$14:$Y$149)/1000,0)) ->  | AS41: =D42 -> 15 | AY41: =IF(AJ41="","",TRUNC(AJ41*D42)) -> 
B42: =E41*10+1 -> 381 | C42: =AG41 -> 22 | D42: 15 | W42: =SUMIF(報告書入力!$C$15:$C$149,B42,報告書入力!$W$15:$W$149) -> 0
P43: =P37 -> 平成30年3月31日 以前のもの | AG43: 23 | AJ43: =IF(W44=0,"",TRUNC(SUMIF(報告書入力!$C$14:$C$149,B44,報告書入力!$Y$14:$Y$149)/1000,0)) ->  | AS43: =D44 -> 15 | AY43: =IF(AJ43="","",TRUNC(AJ43*D44)) -> 
B44: =E41*10+2 -> 382 | C44: =AG43 -> 23 | D44: 15 | W44: =SUMIF(報告書入力!$C$15:$C$149,B44,報告書入力!$W$15:$W$149) -> 0
P45: =P39 -> 平成30年4月1日 以降のもの | AG45: 23 | AJ45: =IF(W46=0,"",TRUNC(SUMIF(報告書入力!$C$14:$C$149,B46,報告書入力!$Y$14:$Y$149)/1000,0)) ->  | AS45: =D46 -> 12 | AY45: =IF(AJ45="","",TRUNC(AJ45*D46)) -> 
B46: =E41*10+3 -> 383 | C46: =AG45 -> 23 | D46: 12 | W46: =SUMIF(報告書入力!$C$15:$C$149,B46,報告書入力!$W$15:$W$149) -> 0
E47: 36 | G47: 機械装置の組立て又は据付けの事業 | J47: 組立て又は取付け に関するもの | P47: =P41 -> 平成27年3月31日 以前のもの | AG47: 38 | AJ47: =IF(W48=0,"",TRUNC(SUMIF(報告書入力!$C$14:$C$149,B48,報告書入力!$Y$14:$Y$149)/1000,0)) ->  | AS47: =D48 -> 7.5 | AY47: =IF(AJ47="","",TRUNC(AJ47*D48)) -> 
B48: =E47*10+1 -> 361 | C48: =AG47 -> 38 | D48: 7.5 | W48: =SUMIF(報告書入力!$C$15:$C$149,B48,報告書入力!$W$15:$W$149) -> 0
P49: =P43 -> 平成30年3月31日 以前のもの | AG49: 40 | AJ49: =IF(W50=0,"",TRUNC(SUMIF(報告書入力!$C$14:$C$149,B50,報告書入力!$Y$14:$Y$149)/1000,0)) ->  | AS49: =D50 -> 6.5 | AY49: =IF(AJ49="","",TRUNC(AJ49*D50)) -> 
B50: =E47*10+2 -> 362 | C50: =AG49 -> 40 | D50: 6.5 | W50: =SUMIF(報告書入力!$C$15:$C$149,B50,報告書入力!$W$15:$W$149) -> 0
P51: =P45 -> 平成30年4月1日 以降のもの | AG51: 38 | AJ51: =IF(W52=0,"",TRUNC(SUMIF(報告書入力!$C$14:$C$149,B52,報告書入力!$Y$14:$Y$149)/1000,0)) ->  | AS51: =D52 -> 6.5 | AY51: =IF(AJ51="","",TRUNC(AJ51*D52)) -> 
B52: =E47*10+3 -> 363 | C52: =AG51 -> 38 | D52: 6.5 | W52: =SUMIF(報告書入力!$C$15:$C$149,B52,報告書入力!$W$15:$W$149) -> 0
J53: その他のもの | P53: =P47 -> 平成27年3月31日 以前のもの | AG53: 21 | AJ53: =IF(W54=0,"",TRUNC(SUMIF(報告書入力!$C$14:$C$149,B54,報告書入力!$Y$14:$Y$149)/1000,0)) ->  | AS53: =D54 -> 7.5 | AY53: =IF(AJ53="","",TRUNC(AJ53*D54)) -> 
B54: 366 | C54: =AG53 -> 21 | D54: 7.5 | W54: =SUMIF(報告書入力!$C$15:$C$149,B54,報告書入力!$W$15:$W$149) -> 0
P55: =P49 -> 平成30年3月31日 以前のもの | AG55: 22 | AJ55: =IF(W56=0,"",TRUNC(SUMIF(報告書入力!$C$14:$C$149,B56,報告書入力!$Y$14:$Y$149)/1000,0)) ->  | AS55: =D56 -> 6.5 | AY55: =IF(AJ55="","",TRUNC(AJ55*D56)) -> 
B56: 367 | C56: =AG55 -> 22 | D56: 6.5 | W56: =SUMIF(報告書入力!$C$15:$C$149,B56,報告書入力!$W$15:$W$149) -> 0
P57: =P51 -> 平成30年4月1日 以降のもの | AG57: 21 | AJ57: =IF(W58=0,"",TRUNC(SUMIF(報告書入力!$C$14:$C$149,B58,報告書入力!$Y$14:$Y$149)/1000,0)) ->  | AS57: =D58 -> 6.5 | AY57: =IF(AJ57="","",TRUNC(AJ57*D58)) -> 
B58: 368 | C58: =AG57 -> 21 | D58: 6.5 | W58: =SUMIF(報告書入力!$C$15:$C$149,B58,報告書入力!$W$15:$W$149) -> 0
E59: 37 | G59: その他の建設事業 | P59: =P53 -> 平成27年3月31日 以前のもの | AG59: 23 | AJ59: =IF(W60=0,"",TRUNC(SUMIF(報告書入力!$C$14:$C$149,B60,報告書入力!$Y$14:$Y$149)/1000,0)) ->  | AS59: =D60 -> 19 | AY59: =IF(AJ59="","",TRUNC(AJ59*D60)) -> 
B60: =E59*10+1 -> 371 | C60: =AG59 -> 23 | D60: 19 | W60: =SUMIF(報告書入力!$C$15:$C$149,B60,報告書入力!$W$15:$W$149) -> 0
P61: =P55 -> 平成30年3月31日 以前のもの | AG61: 24 | AJ61: =IF(W62=0,"",TRUNC(SUMIF(報告書入力!$C$14:$C$149,B62,報告書入力!$Y$14:$Y$149)/1000,0)) ->  | AS61: =D62 -> 17 | AY61: =IF(AJ61="","",TRUNC(AJ61*D62)) -> 
B62: =E59*10+2 -> 372 | C62: =AG61 -> 24 | D62: 17 | W62: =SUMIF(報告書入力!$C$15:$C$149,B62,報告書入力!$W$15:$W$149) -> 0
P63: =P57 -> 平成30年4月1日 以降のもの | AG63: 24 | AJ63: =IF(W64=0,"",TRUNC(SUMIF(報告書入力!$C$14:$C$149,B64,報告書入力!$Y$14:$Y$149)/1000,0)) ->  | AS63: =D64 -> 15 | AY63: =IF(AJ63="","",TRUNC(AJ63*D64)) -> 
B64: =E59*10+3 -> 373 | C64: =AG63 -> 24 | D64: 15 | W64: =SUMIF(報告書入力!$C$15:$C$149,B64,報告書入力!$W$15:$W$149) -> 0
P65: 平成19年3月31日 以前のもの | AI65: ① | AY65: =IF(AJ65="","",TRUNC(AJ65*D66)) -> 
G67: 合 計 | W67: =SUM(W11:AE66) -> 0 | AJ67: =SUM(AJ11:AP66) -> 0 | AY67: =SUM(AY11:BG66) -> 0
AI68: ② | AJ68: （①を除いた合計） | AS68: ③ | AT68: 一般拠出金率 | AY68: 一般拠出金額 （②×③）
AI69: =SUM(AJ11:AP64) -> 0 | AQ69: 千円 | AS69: 1000分の | AY69: =TRUNC(AI69*AS70) -> 0 | BH69: 円
AS70: 0.02
E71: 別添一括有期事業報告書の明細を上記のとおり総括して報告します。 | AV71: 郵便番号( | AZ71: =LEFT(報告書入力!V5,3) ->  | BD71: - | BG71: =RIGHT(報告書入力!V5,4) ->  | BK71: )
AV72: 電話番号( | AZ72: =報告書入力!V9 -> 0 | BC72: - | BD72: =報告書入力!W9 -> 0 | BG72: - | BH72: =報告書入力!X9 -> 0 | BK72: )
G73: =報告書入力!L6 -> 45383 | L73: 4 | P73: 5
E74: 令和 | J74: 年 | O74: 月 | S74: 日 | AR74: =報告書入力!V6 -> 0
AN75: 住所
E76: =一括有期報告書!D33 -> 山梨 | I76: 労働局労働保険特別会計歳入徴収官 殿 | BD76: 記名押印又は署名
AR77: =報告書入力!V7 -> 0
AK78: 事業主
AN79: 氏名 | AR79: =報告書入力!V8 -> 0 | BK79: ㊞
AU80: （法人のときはその名称及び代表者の氏名）
E82: 社会保険労 | F82: 務士記載欄 | G82: 作成年月日・提出代行者・事務代理者の表示 | AC82: 氏 名 | AU82: 電 話 番 号
AS83: ㊞
BG86: (26.1)

Sheet コード
D1: 期間による労務比率算出用
D2: 0 | F2: 1
D3: 2015-04-01 | E3: より前のもの | F3: 2
D4: 2018-04-01 | E4: より前のもの | F4: 3 | J4: 2017-03-31 | K4: =VLOOKUP(J4,D2:F5,3) -> 2
D5: =DATE(YEAR(TODAY()),4,1) -> 2024-04-01 | E5: 以降のもの
D8: 期間による労務比率・保険料率が改正された場合は、
D9: 総括表が改正されるので、上表・総括表シートＣ・Ｄ・ＡＹ列を改正する。
D15: ページ数設定
D16: 0 | E16: 1
D17: 6 | E17: 2
D18: 15 | E18: 3
D19: 24 | E19: 4
D20: 33 | E20: 5
D21: 42 | E21: 6
